BODY,BODY NAME,ENTRY DATE,POSTING DATE,TRANSACTION NUMBER,THEIR REF,AMOUNT,SUPPLIER NAME,SUPPLIER CODE,EXPENSE AREA,EXPENSE TYPE,EXPENSE CODE,
http://statistics.data.gov.uk/id/local-authority/12UE,Huntingdonshire District Council,06/04/2017,07/04/2017,207671,1545718,"221,304.00",EUROPEAN ELECTRONIQUE LTD,CR424036,Imd Shared Service,Other I T Hardware,203,
http://statistics.data.gov.uk/id/local-authority/12UE,Huntingdonshire District Council,06/04/2017,07/04/2017,207671,1545718,"90,464.00",EUROPEAN ELECTRONIQUE LTD,CR424036,Imd Shared Service,Other I T Hardware,203,
http://statistics.data.gov.uk/id/local-authority/12UE,Huntingdonshire District Council,06/04/2017,07/04/2017,207671,1545718,"40,848.00",EUROPEAN ELECTRONIQUE LTD,CR424036,Imd Shared Service,Other I T Hardware,203,
http://statistics.data.gov.uk/id/local-authority/12UE,Huntingdonshire District Council,13/04/2017,13/04/2017,208229,1349026040,"175,243.42",BOUYGES ENERGIES & SERVICES FM UK LTD,CR424690,Refit Buildings,Sitework,359,
http://statistics.data.gov.uk/id/local-authority/12UE,Huntingdonshire District Council,05/04/2017,05/04/2017,207563,194672,"71,787.70",CAMBRIDGE CITY COUNCIL,CR017896,B Regs Applications,Application Fee,A10,
http://statistics.data.gov.uk/id/local-authority/12UE,Huntingdonshire District Council,05/04/2017,05/04/2017,207563,194672,"1,320.00",CAMBRIDGE CITY COUNCIL,CR017896,B Regs Applications,Applications Partnership Fees,A66,
http://statistics.data.gov.uk/id/local-authority/12UE,Huntingdonshire District Council,05/04/2017,05/04/2017,207563,194672,"14,552.16",CAMBRIDGE CITY COUNCIL,CR017896,B Regs Applications,Inspection Fee,A11,
http://statistics.data.gov.uk/id/local-authority/12UE,Huntingdonshire District Council,05/04/2017,05/04/2017,207563,194672,424,CAMBRIDGE CITY COUNCIL,CR017896,B Regs Applications,Sales - Publications,A31,
http://statistics.data.gov.uk/id/local-authority/12UE,Huntingdonshire District Council,06/04/2017,06/04/2017,610104,,"57,850.00",CITIZENS ADVICE RURAL CAMBS,CR423941,Miscellaneous Grants,Grants (Paid Out),800,
http://statistics.data.gov.uk/id/local-authority/12UE,Huntingdonshire District Council,20/04/2017,20/04/2017,208394,220507,"46,605.02",SOUTH CAMBRIDGESHIRE DISTRICT COUNCIL,CR405127,Chief Executive & Comt,Consultants,711,
http://statistics.data.gov.uk/id/local-authority/12UE,Huntingdonshire District Council,04/04/2017,04/04/2017,207466,3154,"41,023.83",SCI PRINT LIMITED,CR416581,Elections,Printing (External),220,
http://statistics.data.gov.uk/id/local-authority/12UE,Huntingdonshire District Council,27/04/2017,27/04/2017,208320,2954,"40,211.96",BURMOR CONSTRUCTION,CR032423,Ol Hdon Changing Facilities,Building Mtce,303,
http://statistics.data.gov.uk/id/local-authority/12UE,Huntingdonshire District Council,06/04/2017,06/04/2017,610193,,"31,150.00",HUNTS FORUM OF VOLUNTARY ORGANISATIONS,CR030582,Miscellaneous Grants,Grants (Paid Out),800,
http://statistics.data.gov.uk/id/local-authority/12UE,Huntingdonshire District Council,24/04/2017,26/04/2017,207080,7770534,"28,654.09",CERTAS ENERGY T/A PACE FUELCARE,CR455975,Stock And Work In Progress,Stock Purchases,980,
http://statistics.data.gov.uk/id/local-authority/12UE,Huntingdonshire District Council,24/04/2017,26/04/2017,208634,7935738,"28,314.94",CERTAS ENERGY T/A PACE FUELCARE,CR455975,Stock And Work In Progress,Stock Purchases,980,
http://statistics.data.gov.uk/id/local-authority/12UE,Huntingdonshire District Council,05/04/2017,06/04/2017,207627,94535441,"27,381.98",NORTHGATE ARINSO,CR416738,Imd Shared Service,Software,206,
http://statistics.data.gov.uk/id/local-authority/12UE,Huntingdonshire District Council,27/04/2017,28/04/2017,208806,UK-SIN005427,764,ESRI UK,CR405125,Imd Shared Service,Software,206,
http://statistics.data.gov.uk/id/local-authority/12UE,Huntingdonshire District Council,27/04/2017,28/04/2017,208806,UK-SIN005427,"5,157.00",ESRI UK,CR405125,Imd Shared Service,Software,206,
http://statistics.data.gov.uk/id/local-authority/12UE,Huntingdonshire District Council,27/04/2017,28/04/2017,208806,UK-SIN005427,"1,654.00",ESRI UK,CR405125,Imd Shared Service,Software,206,
http://statistics.data.gov.uk/id/local-authority/12UE,Huntingdonshire District Council,27/04/2017,28/04/2017,208806,UK-SIN005427,"7,884.00",ESRI UK,CR405125,Imd Shared Service,Software,206,
http://statistics.data.gov.uk/id/local-authority/12UE,Huntingdonshire District Council,27/04/2017,28/04/2017,208806,UK-SIN005427,"6,500.00",ESRI UK,CR405125,Imd Shared Service,Software,206,
http://statistics.data.gov.uk/id/local-authority/12UE,Huntingdonshire District Council,27/04/2017,28/04/2017,208806,UK-SIN005427,764,ESRI UK,CR405125,Imd Shared Service,Software,206,
http://statistics.data.gov.uk/id/local-authority/12UE,Huntingdonshire District Council,27/04/2017,28/04/2017,208806,UK-SIN005427,"1,300.00",ESRI UK,CR405125,Imd Shared Service,Software,206,
http://statistics.data.gov.uk/id/local-authority/12UE,Huntingdonshire District Council,13/04/2017,13/04/2017,208240,2686,"1,954.54",ACEBENCH LIMITED,CR405428,Industrial Properties,Building Insurance,414,
http://statistics.data.gov.uk/id/local-authority/12UE,Huntingdonshire District Council,13/04/2017,13/04/2017,208240,2686,"19,545.42",ACEBENCH LIMITED,CR405428,Industrial Properties,Building Insurance,414,
http://statistics.data.gov.uk/id/local-authority/12UE,Huntingdonshire District Council,11/04/2017,11/04/2017,208012,10727206,"19,964.00",CAMBRIDGESHIRE COUNTY COUNCIL,CR006678,Land Charges,Charges (Income),A02,
http://statistics.data.gov.uk/id/local-authority/12UE,Huntingdonshire District Council,19/04/2017,19/04/2017,207528,2186,"19,338.53",CLOVER CONSERVATORIES & CONSTRUCTION,CR424697,Improvement Grants,Mandatory Grants,801,
http://statistics.data.gov.uk/id/local-authority/12UE,Huntingdonshire District Council,03/04/2017,03/04/2017,207452,JC/5106/29080,"18,938.51",J BREHENY CIVIL ENGINEERING LTD,CR000314,Off Street Parking,Sitework,359,
http://statistics.data.gov.uk/id/local-authority/12UE,Huntingdonshire District Council,07/04/2017,11/04/2017,207898,194605,"-3,815.00",CAMBRIDGE CITY COUNCIL,CR017896,Cctv Shared Service,Charges (Income),A02,
http://statistics.data.gov.uk/id/local-authority/12UE,Huntingdonshire District Council,07/04/2017,11/04/2017,207898,194605,"10,086.50",CAMBRIDGE CITY COUNCIL,CR017896,Cctv Shared Service,Equipment,500,
http://statistics.data.gov.uk/id/local-authority/12UE,Huntingdonshire District Council,07/04/2017,11/04/2017,207898,194605,"3,080.00",CAMBRIDGE CITY COUNCIL,CR017896,Cctv Shared Service,Hire Of Rooms,411,
http://statistics.data.gov.uk/id/local-authority/12UE,Huntingdonshire District Council,07/04/2017,11/04/2017,207898,194605,"8,891.83",CAMBRIDGE CITY COUNCIL,CR017896,Cctv Shared Service,I T Line Rental,248,
http://statistics.data.gov.uk/id/local-authority/12UE,Huntingdonshire District Council,06/04/2017,07/04/2017,207669,1546112,"17,984.99",EUROPEAN ELECTRONIQUE LTD,CR424036,Telephone Upgrade,Equipment Maintenance,511,
http://statistics.data.gov.uk/id/local-authority/12UE,Huntingdonshire District Council,03/04/2017,04/04/2017,207105,UKA_PPL/101370,"3,439.80",UKACTIVE,CR003876,One Leisure Huntingdon,Licences,730,
http://statistics.data.gov.uk/id/local-authority/12UE,Huntingdonshire District Council,03/04/2017,04/04/2017,207105,UKA_PPL/101370,"1,984.50",UKACTIVE,CR003876,One Leisure Ramsey,Licences,730,
http://statistics.data.gov.uk/id/local-authority/12UE,Huntingdonshire District Council,03/04/2017,04/04/2017,207105,UKA_PPL/101370,"1,653.75",UKACTIVE,CR003876,One Leisure Sawtry,Licences,730,
http://statistics.data.gov.uk/id/local-authority/12UE,Huntingdonshire District Council,03/04/2017,04/04/2017,207105,UKA_PPL/101370,"5,027.40",UKACTIVE,CR003876,One Leisure St Ives,Licences,730,
http://statistics.data.gov.uk/id/local-authority/12UE,Huntingdonshire District Council,03/04/2017,04/04/2017,207105,UKA_PPL/101370,"4,299.75",UKACTIVE,CR003876,One Leisure St Neots,Licences,730,
http://statistics.data.gov.uk/id/local-authority/12UE,Huntingdonshire District Council,11/04/2017,11/04/2017,610200,3180,"33,010.00",ST NEOTS TOWN COUNCIL,CR002483,Priory Centre,Contribution (Paid Out),810,
http://statistics.data.gov.uk/id/local-authority/12UE,Huntingdonshire District Council,11/04/2017,11/04/2017,610200,3180,-467,ST NEOTS TOWN COUNCIL,CR002483,Priory Centre,Contribution From Town Council,B12,
http://statistics.data.gov.uk/id/local-authority/12UE,Huntingdonshire District Council,11/04/2017,11/04/2017,610200,3180,"-4,793.00",ST NEOTS TOWN COUNCIL,CR002483,Priory Centre,Insurance Premiums Recovered,A60,
http://statistics.data.gov.uk/id/local-authority/12UE,Huntingdonshire District Council,11/04/2017,11/04/2017,610200,3180,"-12,544.00",ST NEOTS TOWN COUNCIL,CR002483,Buildings - Gf,Principal Due,Y31,
http://statistics.data.gov.uk/id/local-authority/12UE,Huntingdonshire District Council,19/04/2017,20/04/2017,208331,10726139,"11,628.58",CAMBRIDGESHIRE COUNTY COUNCIL,CR006678,Customer Service Centres,I C T Services,731,
http://statistics.data.gov.uk/id/local-authority/12UE,Huntingdonshire District Council,19/04/2017,20/04/2017,208331,10726139,"2,823.54",CAMBRIDGESHIRE COUNTY COUNCIL,CR006678,Imd Shared Service,I T Line Rental,248,
http://statistics.data.gov.uk/id/local-authority/12UE,Huntingdonshire District Council,27/04/2017,28/04/2017,208805,6003538023,"1,074.97",CAPITA BUSINESS SERVICES LTD,CR410639,Imd Shared Service,Software,206,
http://statistics.data.gov.uk/id/local-authority/12UE,Huntingdonshire District Council,27/04/2017,28/04/2017,208805,6003538023,273.05,CAPITA BUSINESS SERVICES LTD,CR410639,Imd Shared Service,Software,206,
http://statistics.data.gov.uk/id/local-authority/12UE,Huntingdonshire District Council,27/04/2017,28/04/2017,208805,6003538023,301.76,CAPITA BUSINESS SERVICES LTD,CR410639,Imd Shared Service,Software,206,
http://statistics.data.gov.uk/id/local-authority/12UE,Huntingdonshire District Council,27/04/2017,28/04/2017,208805,6003538023,"1,719.95",CAPITA BUSINESS SERVICES LTD,CR410639,Imd Shared Service,Software,206,
http://statistics.data.gov.uk/id/local-authority/12UE,Huntingdonshire District Council,27/04/2017,28/04/2017,208805,6003538023,"1,862.04",CAPITA BUSINESS SERVICES LTD,CR410639,Imd Shared Service,Software,206,
http://statistics.data.gov.uk/id/local-authority/12UE,Huntingdonshire District Council,27/04/2017,28/04/2017,208805,6003538023,"2,314.51",CAPITA BUSINESS SERVICES LTD,CR410639,Imd Shared Service,Software,206,
http://statistics.data.gov.uk/id/local-authority/12UE,Huntingdonshire District Council,27/04/2017,28/04/2017,208805,6003538023,546.09,CAPITA BUSINESS SERVICES LTD,CR410639,Imd Shared Service,Software,206,
http://statistics.data.gov.uk/id/local-authority/12UE,Huntingdonshire District Council,27/04/2017,28/04/2017,208805,6003538023,"2,140.48",CAPITA BUSINESS SERVICES LTD,CR410639,Imd Shared Service,Software,206,
http://statistics.data.gov.uk/id/local-authority/12UE,Huntingdonshire District Council,27/04/2017,28/04/2017,208805,6003538023,"2,184.34",CAPITA BUSINESS SERVICES LTD,CR410639,Imd Shared Service,Software,206,
http://statistics.data.gov.uk/id/local-authority/12UE,Huntingdonshire District Council,27/04/2017,28/04/2017,208805,6003538023,224.84,CAPITA BUSINESS SERVICES LTD,CR410639,Imd Shared Service,Software,206,
http://statistics.data.gov.uk/id/local-authority/12UE,Huntingdonshire District Council,27/04/2017,28/04/2017,208805,6003538023,"1,102.15",CAPITA BUSINESS SERVICES LTD,CR410639,Imd Shared Service,Software,206,
http://statistics.data.gov.uk/id/local-authority/12UE,Huntingdonshire District Council,26/04/2017,27/04/2017,208588,920,"12,500.00",HACT,CR455657,Transportation Mgt,Contribution (Paid Out),810,
http://statistics.data.gov.uk/id/local-authority/12UE,Huntingdonshire District Council,10/04/2017,10/04/2017,207902,9061,"12,480.00",SOLACE IN BUSINESS,CR416525,Chief Executive & Comt,Hired Staff,100,
http://statistics.data.gov.uk/id/local-authority/12UE,Huntingdonshire District Council,20/04/2017,20/04/2017,208369,IEG4001401,"12,000.00",IEG4 LIMITED,CR453919,Imd Shared Service,Software,206,
http://statistics.data.gov.uk/id/local-authority/12UE,Huntingdonshire District Council,10/04/2017,12/04/2017,207980,129254,"11,875.00",CORNERSTONE BARRISTERS,CR455436,Dc Application Processing,Consultants,711,
http://statistics.data.gov.uk/id/local-authority/12UE,Huntingdonshire District Council,26/04/2017,26/04/2017,208780,31447,"1,124.48",HI-SPEC FACILITIES SERVICES PLC,CR423413,E F H And Depots,Building Cleaning,440,
http://statistics.data.gov.uk/id/local-authority/12UE,Huntingdonshire District Council,26/04/2017,26/04/2017,208780,31447,629.71,HI-SPEC FACILITIES SERVICES PLC,CR423413,One Leisure Huntingdon,Building Cleaning,440,
http://statistics.data.gov.uk/id/local-authority/12UE,Huntingdonshire District Council,26/04/2017,26/04/2017,208780,31447,"3,148.56",HI-SPEC FACILITIES SERVICES PLC,CR423413,Pathfinder House Site,Building Cleaning,440,
http://statistics.data.gov.uk/id/local-authority/12UE,Huntingdonshire District Council,26/04/2017,26/04/2017,208780,31447,494.78,HI-SPEC FACILITIES SERVICES PLC,CR423413,One Leisure Ramsey,Building Cleaning,440,
http://statistics.data.gov.uk/id/local-authority/12UE,Huntingdonshire District Council,26/04/2017,26/04/2017,208780,31447,517.27,HI-SPEC FACILITIES SERVICES PLC,CR423413,One Leisure Sawtry,Building Cleaning,440,
http://statistics.data.gov.uk/id/local-authority/12UE,Huntingdonshire District Council,26/04/2017,26/04/2017,208780,31447,"3,800.76",HI-SPEC FACILITIES SERVICES PLC,CR423413,One Leisure St Ives,Building Cleaning,440,
http://statistics.data.gov.uk/id/local-authority/12UE,Huntingdonshire District Council,26/04/2017,26/04/2017,208780,31447,"1,709.22",HI-SPEC FACILITIES SERVICES PLC,CR423413,One Leisure St Neots,Building Cleaning,440,
http://statistics.data.gov.uk/id/local-authority/12UE,Huntingdonshire District Council,04/04/2017,12/04/2017,207511,17769,"10,500.00",PROMAIL LTD,CR424672,Document Centre,Equipment Maintenance,511,
http://statistics.data.gov.uk/id/local-authority/12UE,Huntingdonshire District Council,11/04/2017,11/04/2017,207974,40152459,"10,450.00",LGA CONFERENCE ACCOUNT,CR409238,Chief Executive & Comt,Corporate Subscriptions,754,
http://statistics.data.gov.uk/id/local-authority/12UE,Huntingdonshire District Council,19/04/2017,20/04/2017,208337,HSMLI1700050,"10,183.86",HORNBILL SERVICE MANAGEMENT LIMITED,CR423491,Imd Shared Service,Software,206,
http://statistics.data.gov.uk/id/local-authority/12UE,Huntingdonshire District Council,03/04/2017,03/04/2017,207458,JC/5106,"10,068.30",J BREHENY CIVIL ENGINEERING LTD,CR000314,Parks & Open Spaces,Sitework,359,
http://statistics.data.gov.uk/id/local-authority/12UE,Huntingdonshire District Council,27/04/2017,27/04/2017,208751,1076,"9,750.00",WILLIAMS ARCHITECTS,CR424726,Leisure Centres Capital,Building Mtce,303,
http://statistics.data.gov.uk/id/local-authority/12UE,Huntingdonshire District Council,06/04/2017,07/04/2017,207673,UK4-248-2017,"8,700.00",KEYTREE LIMITED,CR424687,Flexible Working,Software,206,
http://statistics.data.gov.uk/id/local-authority/12UE,Huntingdonshire District Council,10/04/2017,10/04/2017,207903,REDACTED,"8,580.00",SOLACE IN BUSINESS,CR416525,Chief Executive & Comt,Hired Staff,100,
http://statistics.data.gov.uk/id/local-authority/12UE,Huntingdonshire District Council,06/04/2017,07/04/2017,207641,458766,"7,734.50",STORM TECHNOLOGIES,CR480909,Imd Shared Service,Other I T Hardware,203,
http://statistics.data.gov.uk/id/local-authority/12UE,Huntingdonshire District Council,19/04/2017,20/04/2017,208216,INV-0453,"7,339.00",BIG DAY EVENTS LTD,CR453802,One Leisure St Ives,Catering,710,
http://statistics.data.gov.uk/id/local-authority/12UE,Huntingdonshire District Council,27/04/2017,27/04/2017,208835,580,"7,292.15",TOTAL FLOORING UK,CR424734,Leisure Centres Capital,Building Mtce,303,
http://statistics.data.gov.uk/id/local-authority/12UE,Huntingdonshire District Council,27/04/2017,28/04/2017,202488,12-000007418,"7,200.00",CUSHMAN & WAKEFIELD,CR424152,Local Development Framework,Consultants,711,
http://statistics.data.gov.uk/id/local-authority/12UE,Huntingdonshire District Council,25/04/2017,25/04/2017,208755,2237601,241.01,COMPUTERSHARE VOUCHERS LTD,CR412205,Human Resources,Childcare Admin Vouchers,144,
http://statistics.data.gov.uk/id/local-authority/12UE,Huntingdonshire District Council,25/04/2017,25/04/2017,208755,2237601,"6,886.00",COMPUTERSHARE VOUCHERS LTD,CR412205,Child Care Vouchers - Payroll,Deductions Paid To Third Party,26,
http://statistics.data.gov.uk/id/local-authority/12UE,Huntingdonshire District Council,05/04/2017,06/04/2017,207628,94535412,"7,000.00",NORTHGATE ARINSO,CR416738,Imd Shared Service,Software,206,
http://statistics.data.gov.uk/id/local-authority/12UE,Huntingdonshire District Council,27/04/2017,27/04/2017,208364,SI6313,"6,585.21",FOSTER PROPERTY MAINTENANCE LTD,CR412056,Improvement Grants,Mandatory Grants,801,
http://statistics.data.gov.uk/id/local-authority/12UE,Huntingdonshire District Council,19/04/2017,19/04/2017,207655,S29895,"6,169.65",BSG PROPERTY SERVICES LTD,CR089905,Improvement Grants,Mandatory Grants,801,
http://statistics.data.gov.uk/id/local-authority/12UE,Huntingdonshire District Council,04/04/2017,05/04/2017,207510,Jun-87,"6,034.00",FINGERPRINT,CR001165,Document Centre,Equipment Maintenance,511,
http://statistics.data.gov.uk/id/local-authority/12UE,Huntingdonshire District Council,06/04/2017,06/04/2017,610029,DFG,"6,000.00",REDACTED,CR424677,Improvement Grants,Mandatory Grants,801,
http://statistics.data.gov.uk/id/local-authority/12UE,Huntingdonshire District Council,07/04/2017,11/04/2017,207899,SIN083435,"3,000.50",QUADRANT SECURITY GROUP,CR027775,Cctv Shared Service,Equipment Maintenance,511,
http://statistics.data.gov.uk/id/local-authority/12UE,Huntingdonshire District Council,07/04/2017,11/04/2017,207899,SIN083435,"2,367.36",QUADRANT SECURITY GROUP,CR027775,Cctv Shared Service,Equipment Maintenance,511,
http://statistics.data.gov.uk/id/local-authority/12UE,Huntingdonshire District Council,05/04/2017,06/04/2017,207613,923469-078A,526.08,VIRGIN MEDIA BUSINESS/CPSN,CR455148,Cctv Shared Service,I T Line Rental,248,
http://statistics.data.gov.uk/id/local-authority/12UE,Huntingdonshire District Council,05/04/2017,06/04/2017,207613,923469-078A,"4,841.64",VIRGIN MEDIA BUSINESS/CPSN,CR455148,Imd Shared Service,I T Line Rental,248,
http://statistics.data.gov.uk/id/local-authority/12UE,Huntingdonshire District Council,27/04/2017,27/04/2017,208681,S29702,"5,359.00",BSG PROPERTY SERVICES LTD,CR089905,Improvement Grants,Mandatory Grants,801,
http://statistics.data.gov.uk/id/local-authority/12UE,Huntingdonshire District Council,06/04/2017,07/04/2017,207629,SINV00106433,333,BIST,CR422733,Imd Shared Service,Badges And Certificates,571,
http://statistics.data.gov.uk/id/local-authority/12UE,Huntingdonshire District Council,06/04/2017,07/04/2017,207629,SINV00106433,"1,825.00",BIST,CR422733,Imd Shared Service,Badges And Certificates,571,
http://statistics.data.gov.uk/id/local-authority/12UE,Huntingdonshire District Council,06/04/2017,07/04/2017,207629,SINV00106433,455,BIST,CR422733,Imd Shared Service,Badges And Certificates,571,
http://statistics.data.gov.uk/id/local-authority/12UE,Huntingdonshire District Council,06/04/2017,07/04/2017,207629,SINV00106433,"2,738.00",BIST,CR422733,Imd Shared Service,Badges And Certificates,571,
http://statistics.data.gov.uk/id/local-authority/12UE,Huntingdonshire District Council,03/04/2017,03/04/2017,207456,JC/510629075,"5,335.00",J BREHENY CIVIL ENGINEERING LTD,CR000314,Parks & Open Spaces,Building Mtce,303,
http://statistics.data.gov.uk/id/local-authority/12UE,Huntingdonshire District Council,20/04/2017,20/04/2017,208408,3125738,"2,525.00",CIPFA BUSINESS LIMITED,CR480088,Financial Services Mus,Corporate Subscriptions,754,
http://statistics.data.gov.uk/id/local-authority/12UE,Huntingdonshire District Council,20/04/2017,20/04/2017,208408,3125738,"2,750.00",CIPFA BUSINESS LIMITED,CR480088,Financial Services Mus,Corporate Subscriptions,754,
http://statistics.data.gov.uk/id/local-authority/12UE,Huntingdonshire District Council,27/04/2017,27/04/2017,208363,S16315,"5,147.11",FOSTER PROPERTY MAINTENANCE LTD,CR412056,Improvement Grants,Mandatory Grants,801,
http://statistics.data.gov.uk/id/local-authority/12UE,Huntingdonshire District Council,19/04/2017,20/04/2017,208362,RC-HDC008,"4,920.00",RENT CONNECT,CR424138,Homelessness Management,Bed & Breakfast Payment,818,
http://statistics.data.gov.uk/id/local-authority/12UE,Huntingdonshire District Council,27/04/2017,28/04/2017,208804,1030505,"4,900.00",Q-MATIC UK LTD,CR417152,Imd Shared Service,Equipment Maintenance,511,
http://statistics.data.gov.uk/id/local-authority/12UE,Huntingdonshire District Council,12/04/2017,12/04/2017,208046,10726141,"4,800.00",CAMBRIDGESHIRE COUNTY COUNCIL,CR403582,Refit Buildings,Consultants,711,
http://statistics.data.gov.uk/id/local-authority/12UE,Huntingdonshire District Council,13/04/2017,13/04/2017,208225,3124514,"4,785.00",CIPFA BUSINESS LIMITED,CR480088,Financial Services Mus,Corporate Subscriptions,754,
http://statistics.data.gov.uk/id/local-authority/12UE,Huntingdonshire District Council,04/04/2017,12/04/2017,206804,17747,"4,730.67",PROMAIL LTD,CR424672,Document Centre,Equipment Maintenance,511,
http://statistics.data.gov.uk/id/local-authority/12UE,Huntingdonshire District Council,07/04/2017,07/04/2017,207882,LTHR40,"4,725.00",WILLOW HR LIMITED,CR422016,Human Resources,Consultants,711,
http://statistics.data.gov.uk/id/local-authority/12UE,Huntingdonshire District Council,24/04/2017,26/04/2017,208612,10722232,"4,648.24",CAMBRIDGESHIRE COUNTY COUNCIL,CR006678,Trade Refuse,Waste Disposal,763,
http://statistics.data.gov.uk/id/local-authority/12UE,Huntingdonshire District Council,19/04/2017,19/04/2017,208339,592,"4,450.00",REDACTED,CR030128,Improvement Grants,Mandatory Grants,801,
http://statistics.data.gov.uk/id/local-authority/12UE,Huntingdonshire District Council,10/04/2017,12/04/2017,207901,BID SETTLEMENT,"4,352.00",BID HUNTINGDON,CR415389,General Creditors,Payment Of Amount Due,3,
http://statistics.data.gov.uk/id/local-authority/12UE,Huntingdonshire District Council,18/04/2017,18/04/2017,208265,INV:LUK001301,"4,300.00",LIMEHOUSE SOFTWARE LTD,CR412010,Local Development Framework,Software,206,
http://statistics.data.gov.uk/id/local-authority/12UE,Huntingdonshire District Council,11/04/2017,12/04/2017,207920,15496,"4,269.30",JADE SECURITY SERVICES LTD,CR422256,Off Street Parking,Cash Collection,702,
http://statistics.data.gov.uk/id/local-authority/12UE,Huntingdonshire District Council,19/04/2017,20/04/2017,208330,B7926,"4,200.00",MAGNET SOLUTIONS,CR416903,Imd Shared Service,Software,206,
http://statistics.data.gov.uk/id/local-authority/12UE,Huntingdonshire District Council,25/04/2017,25/04/2017,208753,2587884,"4,195.25",TROWERS AND HAMLINS,CR422151,Chief Executive & Comt,Legal Fees,729,
http://statistics.data.gov.uk/id/local-authority/12UE,Huntingdonshire District Council,11/04/2017,12/04/2017,207944,124592,"4,180.00",IT TALENT SOLUTIONS LTD,CR482676,Imd Shared Service,Hired Staff,100,
http://statistics.data.gov.uk/id/local-authority/12UE,Huntingdonshire District Council,27/04/2017,27/04/2017,208368,63073,"4,079.00",GASWISE,CR423458,Improvement Grants,Mandatory Grants,801,
http://statistics.data.gov.uk/id/local-authority/12UE,Huntingdonshire District Council,13/04/2017,13/04/2017,208224,CE004909,"4,000.00",JLT SPECIALITY LTD,CR480345,Financial Services,Consultants,711,
http://statistics.data.gov.uk/id/local-authority/12UE,Huntingdonshire District Council,27/04/2017,28/04/2017,208824,REDACTED,"4,000.00",JDA-NET LTD,CR423987,Imd Shared Service,Hired Staff,100,
http://statistics.data.gov.uk/id/local-authority/12UE,Huntingdonshire District Council,10/04/2017,10/04/2017,207904,1007440652,"3,850.00",HAYS,CR423917,Chief Executive & Comt,Consultants,711,
http://statistics.data.gov.uk/id/local-authority/12UE,Huntingdonshire District Council,10/04/2017,10/04/2017,207905,1007430895,"3,850.00",HAYS,CR423917,Chief Executive & Comt,Consultants,711,
http://statistics.data.gov.uk/id/local-authority/12UE,Huntingdonshire District Council,18/04/2017,18/04/2017,208273,1007459524,"3,850.00",HAYS,CR423917,Chief Executive & Comt,Consultants,711,
http://statistics.data.gov.uk/id/local-authority/12UE,Huntingdonshire District Council,27/04/2017,27/04/2017,208852,1007485353,"3,850.00",HAYS,CR423917,Chief Executive & Comt,Consultants,711,
http://statistics.data.gov.uk/id/local-authority/12UE,Huntingdonshire District Council,19/04/2017,19/04/2017,208341,62928,"3,839.00",GASWISE,CR423458,Improvement Grants,Mandatory Grants,801,
http://statistics.data.gov.uk/id/local-authority/12UE,Huntingdonshire District Council,12/04/2017,12/04/2017,208064,,"3,826.54",E-ON ENERGY,CR416430,One Leisure St Ives,Gas,421,
http://statistics.data.gov.uk/id/local-authority/12UE,Huntingdonshire District Council,27/04/2017,28/04/2017,209024,17092,"3,774.36",POS ENTERPRISES,CR413287,Planning M U'S,Benchmarking,707,
http://statistics.data.gov.uk/id/local-authority/12UE,Huntingdonshire District Council,24/04/2017,26/04/2017,208606,IN16PS17001936,"1,045.55",WHISTL UK LTD,CR424061,Council Tax,Postage,231,
http://statistics.data.gov.uk/id/local-authority/12UE,Huntingdonshire District Council,24/04/2017,26/04/2017,208606,IN16PS17001936,"1,080.33",WHISTL UK LTD,CR424061,Document Centre,Postage,231,
http://statistics.data.gov.uk/id/local-authority/12UE,Huntingdonshire District Council,24/04/2017,26/04/2017,208606,IN16PS17001936,68.58,WHISTL UK LTD,CR424061,Electoral Registration,Postage,231,
http://statistics.data.gov.uk/id/local-authority/12UE,Huntingdonshire District Council,24/04/2017,26/04/2017,208606,IN16PS17001936,"1,539.06",WHISTL UK LTD,CR424061,Housing  Benefits Admin,Postage,231,
http://statistics.data.gov.uk/id/local-authority/12UE,Huntingdonshire District Council,20/04/2017,20/04/2017,208076,27194,113,M & N VEHICLE SERVICES,CR480661,Recycling,Vehicle Mot,622,
http://statistics.data.gov.uk/id/local-authority/12UE,Huntingdonshire District Council,20/04/2017,20/04/2017,208076,27194,"3,605.92",M & N VEHICLE SERVICES,CR480661,Recycling,Vehicle Parts & Fittings,625,
http://statistics.data.gov.uk/id/local-authority/12UE,Huntingdonshire District Council,11/04/2017,12/04/2017,207946,B3121658,"3,670.56",BEMROSE MOBILE LTD,CR422668,Off Street Parking,Telephone &Mobile Phonecharges,240,
http://statistics.data.gov.uk/id/local-authority/12UE,Huntingdonshire District Council,12/04/2017,12/04/2017,610199,274,"3,630.00",COACH & HORSES,CR410824,Homelessness Management,Bed & Breakfast Payment,818,
http://statistics.data.gov.uk/id/local-authority/12UE,Huntingdonshire District Council,20/04/2017,20/04/2017,208406,48336,"1,500.00",LUCION ENVIRONMENTAL LTD,CR424646,Leisure Centres Capital,Consultants,711,
http://statistics.data.gov.uk/id/local-authority/12UE,Huntingdonshire District Council,20/04/2017,20/04/2017,208406,48336,"2,100.00",LUCION ENVIRONMENTAL LTD,CR424646,Refit Buildings,Consultants,711,
http://statistics.data.gov.uk/id/local-authority/12UE,Huntingdonshire District Council,18/04/2017,18/04/2017,208269,1007358367,"3,575.00",HAYS,CR423917,Chief Executive & Comt,Hired Staff,100,
http://statistics.data.gov.uk/id/local-authority/12UE,Huntingdonshire District Council,25/04/2017,25/04/2017,208748,1007442489,"3,575.00",HAYS,CR423917,Chief Executive & Comt,Hired Staff,100,
http://statistics.data.gov.uk/id/local-authority/12UE,Huntingdonshire District Council,05/04/2017,06/04/2017,207625,94536077,"3,564.00",NORTHGATE ARINSO,CR416738,Imd Shared Service,Consultants,711,
http://statistics.data.gov.uk/id/local-authority/12UE,Huntingdonshire District Council,27/04/2017,28/04/2017,208728,7953,"2,890.00",AIR MONITORS LTD,CR480691,Air Quality,Equipment Maintenance,511,
http://statistics.data.gov.uk/id/local-authority/12UE,Huntingdonshire District Council,27/04/2017,28/04/2017,208728,7953,480,AIR MONITORS LTD,CR480691,Air Quality,Equipment Maintenance,511,
http://statistics.data.gov.uk/id/local-authority/12UE,Huntingdonshire District Council,27/04/2017,27/04/2017,208678,S085060411,"3,363.00",STANNAH LTD Ref(20HU025),CR000759,Improvement Grants,Mandatory Grants,801,
http://statistics.data.gov.uk/id/local-authority/12UE,Huntingdonshire District Council,25/04/2017,25/04/2017,208745,1007419782,"3,217.50",HAYS,CR423917,Chief Executive & Comt,Hired Staff,100,
http://statistics.data.gov.uk/id/local-authority/12UE,Huntingdonshire District Council,26/04/2017,27/04/2017,208660,219000,"3,145.66",JORDAN FITNESS,CR413161,One Leisure Ramsey,Equipment,500,
http://statistics.data.gov.uk/id/local-authority/12UE,Huntingdonshire District Council,12/04/2017,12/04/2017,208035,211687030,"3,127.43",SWALEC,CR407130,One Leisure Sawtry,Electricity,420,
http://statistics.data.gov.uk/id/local-authority/12UE,Huntingdonshire District Council,26/04/2017,27/04/2017,207966,IN0590199,"3,004.14",STAFFLINE GROUP,CR416827,Domestic Refuse,Hired Staff,100,
http://statistics.data.gov.uk/id/local-authority/12UE,Huntingdonshire District Council,05/04/2017,06/04/2017,207615,3567595,"3,000.00",RSM UK CONSULTING LLP,CR422912,Imd Shared Service,Software,206,
http://statistics.data.gov.uk/id/local-authority/12UE,Huntingdonshire District Council,26/04/2017,27/04/2017,207964,IN0590200,"2,989.76",STAFFLINE GROUP,CR416827,Domestic Refuse,Hired Staff,100,
http://statistics.data.gov.uk/id/local-authority/12UE,Huntingdonshire District Council,19/04/2017,20/04/2017,610496,275,700,COACH & HORSES,CR410824,Homelessness Management,Bed & Breakfast Payment,818,
http://statistics.data.gov.uk/id/local-authority/12UE,Huntingdonshire District Council,19/04/2017,20/04/2017,610496,275,"2,275.00",COACH & HORSES,CR410824,Homelessness Management,Bed & Breakfast Payment,818,
http://statistics.data.gov.uk/id/local-authority/12UE,Huntingdonshire District Council,12/04/2017,12/04/2017,208034,481686634,"2,963.16",SWALEC,CR407130,Housing Services Other,Electricity,420,
http://statistics.data.gov.uk/id/local-authority/12UE,Huntingdonshire District Council,27/04/2017,27/04/2017,610680,276,245,COACH & HORSES,CR410824,Homelessness Management,Bed & Breakfast Payment,818,
http://statistics.data.gov.uk/id/local-authority/12UE,Huntingdonshire District Council,27/04/2017,27/04/2017,610680,276,"2,640.00",COACH & HORSES,CR410824,Homelessness Management,Bed & Breakfast Payment,818,
http://statistics.data.gov.uk/id/local-authority/12UE,Huntingdonshire District Council,27/04/2017,27/04/2017,208849,1007459526,"2,860.00",HAYS,CR423917,Chief Executive & Comt,Hired Staff,100,
http://statistics.data.gov.uk/id/local-authority/12UE,Huntingdonshire District Council,27/04/2017,28/04/2017,208833,39911,"2,854.20",STR GROUP,CR424704,Imd Shared Service,Hired Staff,100,
http://statistics.data.gov.uk/id/local-authority/12UE,Huntingdonshire District Council,12/04/2017,12/04/2017,208072,12489088380,"2,744.98",E-ON ENERGY,CR416430,One Leisure St Neots,Gas,421,
http://statistics.data.gov.uk/id/local-authority/12UE,Huntingdonshire District Council,12/04/2017,12/04/2017,208039,151678759,"2,736.48",SWALEC,CR407130,One Leisure Ramsey,Electricity,420,
http://statistics.data.gov.uk/id/local-authority/12UE,Huntingdonshire District Council,27/04/2017,27/04/2017,208684,1451848,"2,699.00",AKW MEDICARE LTD,CR403559,Improvement Grants,Mandatory Grants,801,
http://statistics.data.gov.uk/id/local-authority/12UE,Huntingdonshire District Council,11/04/2017,12/04/2017,207932,R020471,"2,625.00",PREMIER IT RECRUITMENT LTD,CR454029,Imd Shared Service,Hired Staff,100,
http://statistics.data.gov.uk/id/local-authority/12UE,Huntingdonshire District Council,11/04/2017,12/04/2017,207941,124598,"2,625.00",IT TALENT SOLUTIONS LTD,CR482676,Imd Shared Service,Hired Staff,100,
http://statistics.data.gov.uk/id/local-authority/12UE,Huntingdonshire District Council,11/04/2017,12/04/2017,207942,124662,"2,625.00",IT TALENT SOLUTIONS LTD,CR482676,Imd Shared Service,Hired Staff,100,
http://statistics.data.gov.uk/id/local-authority/12UE,Huntingdonshire District Council,19/04/2017,20/04/2017,208328,R020576,"2,625.00",PREMIER IT RECRUITMENT LTD,CR454029,Imd Shared Service,Hired Staff,100,
http://statistics.data.gov.uk/id/local-authority/12UE,Huntingdonshire District Council,26/04/2017,27/04/2017,208653,9772,"1,093.00",ROGER WILSON ELECTRONICS,CR028041,Leisure Centres Capital,Building Mtce,303,
http://statistics.data.gov.uk/id/local-authority/12UE,Huntingdonshire District Council,26/04/2017,27/04/2017,208653,9772,"1,437.42",ROGER WILSON ELECTRONICS,CR028041,One Leisure St Neots,Building Mtce,303,
http://statistics.data.gov.uk/id/local-authority/12UE,Huntingdonshire District Council,11/04/2017,12/04/2017,207933,JDAINVHDC070417,"2,500.00",JDA-NET LTD,CR423987,Imd Shared Service,Hired Staff,100,
http://statistics.data.gov.uk/id/local-authority/12UE,Huntingdonshire District Council,19/04/2017,20/04/2017,208284,456,"2,500.00",SCAMP THEATRE LTD,CR424025,One Leisure St Ives,Entertainments Inc Cable Tv,744,
http://statistics.data.gov.uk/id/local-authority/12UE,Huntingdonshire District Council,11/04/2017,11/04/2017,207923,257425,"2,477.25",SHAW & SONS LIMITED,CR003422,Elections,Stationery,225,
http://statistics.data.gov.uk/id/local-authority/12UE,Huntingdonshire District Council,18/04/2017,18/04/2017,208267,IN16PS17001775,507.58,WHISTL UK LTD,CR424061,Document Centre,Postage,231,
http://statistics.data.gov.uk/id/local-authority/12UE,Huntingdonshire District Council,18/04/2017,18/04/2017,208267,IN16PS17001775,11.12,WHISTL UK LTD,CR424061,Electoral Registration,Postage,231,
http://statistics.data.gov.uk/id/local-authority/12UE,Huntingdonshire District Council,18/04/2017,18/04/2017,208267,IN16PS17001775,"1,949.95",WHISTL UK LTD,CR424061,Housing  Benefits Admin,Postage,231,
http://statistics.data.gov.uk/id/local-authority/12UE,Huntingdonshire District Council,07/04/2017,07/04/2017,207890,151678759,"2,468.64",SWALEC,CR407130,One Leisure Ramsey,Electricity,420,
http://statistics.data.gov.uk/id/local-authority/12UE,Huntingdonshire District Council,12/04/2017,12/04/2017,204407,23490,"2,457.00",B. S. GRAVES ELECTRICAL LTD,CR000363,Pathfinder House Site,Building Mtce,303,
http://statistics.data.gov.uk/id/local-authority/12UE,Huntingdonshire District Council,12/04/2017,12/04/2017,208065,12489088110,"2,427.56",E-ON ENERGY,CR416430,One Leisure Huntingdon,Gas,421,
http://statistics.data.gov.uk/id/local-authority/12UE,Huntingdonshire District Council,26/04/2017,27/04/2017,208794,313,"2,297.83",2 TON PRODUCTIONS,CR410213,One Leisure St Ives,Entertainments Inc Cable Tv,744,
http://statistics.data.gov.uk/id/local-authority/12UE,Huntingdonshire District Council,27/04/2017,28/04/2017,208832,50963,"2,295.15",ADVANTAGE RESOURCING,CR424715,Imd Shared Service,Hired Staff,100,
http://statistics.data.gov.uk/id/local-authority/12UE,Huntingdonshire District Council,27/04/2017,27/04/2017,208844,PO28545,"2,241.12",AFFINITY TRUST,CR423924,General Creditors,Overpayments Recovered,C93,
http://statistics.data.gov.uk/id/local-authority/12UE,Huntingdonshire District Council,11/04/2017,12/04/2017,207943,124688,"2,200.00",IT TALENT SOLUTIONS LTD,CR482676,Imd Shared Service,Hired Staff,100,
http://statistics.data.gov.uk/id/local-authority/12UE,Huntingdonshire District Council,11/04/2017,12/04/2017,208022,286300002,"2,187.84",ANGLIAN WATER,CR000071,One Leisure Sawtry,Water & Sewerage,432,
http://statistics.data.gov.uk/id/local-authority/12UE,Huntingdonshire District Council,06/04/2017,07/04/2017,207604,17026,836.91,KHIPU NETWORKS LTD,CR482348,Telephone Upgrade,Other I T Hardware,203,
http://statistics.data.gov.uk/id/local-authority/12UE,Huntingdonshire District Council,06/04/2017,07/04/2017,207604,17026,283.68,KHIPU NETWORKS LTD,CR482348,Telephone Upgrade,Other I T Hardware,203,
http://statistics.data.gov.uk/id/local-authority/12UE,Huntingdonshire District Council,06/04/2017,07/04/2017,207604,17026,441.24,KHIPU NETWORKS LTD,CR482348,Telephone Upgrade,Other I T Hardware,203,
http://statistics.data.gov.uk/id/local-authority/12UE,Huntingdonshire District Council,06/04/2017,07/04/2017,207604,17026,423.04,KHIPU NETWORKS LTD,CR482348,Telephone Upgrade,Other I T Hardware,203,
http://statistics.data.gov.uk/id/local-authority/12UE,Huntingdonshire District Council,06/04/2017,07/04/2017,207604,17026,154.56,KHIPU NETWORKS LTD,CR482348,Telephone Upgrade,Other I T Hardware,203,
http://statistics.data.gov.uk/id/local-authority/12UE,Huntingdonshire District Council,06/04/2017,07/04/2017,207604,17026,44.96,KHIPU NETWORKS LTD,CR482348,Telephone Upgrade,Other I T Hardware,203,
http://statistics.data.gov.uk/id/local-authority/12UE,Huntingdonshire District Council,05/04/2017,05/04/2017,207643,3165,"2,166.13",SCI PRINT LIMITED,CR416581,Elections,Printing (External),220,
http://statistics.data.gov.uk/id/local-authority/12UE,Huntingdonshire District Council,19/04/2017,20/04/2017,208288,17004502,"2,160.00",TECHNOGYM UK LTD,CR033037,One Leisure Huntingdon,Software,206,
http://statistics.data.gov.uk/id/local-authority/12UE,Huntingdonshire District Council,19/04/2017,20/04/2017,208289,17004503,"2,160.00",TECHNOGYM UK LTD,CR033037,One Leisure Sawtry,Software,206,
http://statistics.data.gov.uk/id/local-authority/12UE,Huntingdonshire District Council,19/04/2017,20/04/2017,208290,17004498,"2,160.00",TECHNOGYM UK LTD,CR033037,One Leisure St Ives,Software,206,
http://statistics.data.gov.uk/id/local-authority/12UE,Huntingdonshire District Council,19/04/2017,20/04/2017,208291,17004501,"2,160.00",TECHNOGYM UK LTD,CR033037,One Leisure St Neots,Software,206,
http://statistics.data.gov.uk/id/local-authority/12UE,Huntingdonshire District Council,19/04/2017,20/04/2017,208292,17004500,"2,160.00",TECHNOGYM UK LTD,CR033037,One Leisure Ramsey,Software,206,
http://statistics.data.gov.uk/id/local-authority/12UE,Huntingdonshire District Council,19/04/2017,20/04/2017,208257,101,"2,158.00",ROGER HYDE LIMITED,CR409426,Leisure Centres Capital,Building Mtce,303,
http://statistics.data.gov.uk/id/local-authority/12UE,Huntingdonshire District Council,27/04/2017,28/04/2017,208823,R020680,"2,140.00",PREMIER IT RECRUITMENT LTD,CR454029,Imd Shared Service,Hired Staff,100,
http://statistics.data.gov.uk/id/local-authority/12UE,Huntingdonshire District Council,27/04/2017,28/04/2017,208829,124719,"2,100.00",IT TALENT SOLUTIONS LTD,CR482676,Imd Shared Service,Hired Staff,100,
http://statistics.data.gov.uk/id/local-authority/12UE,Huntingdonshire District Council,11/04/2017,11/04/2017,207922,17/02/M034,"2,042.24",ASSET FINELINE,CR404114,Improvement Grants,Mandatory Grants,801,
http://statistics.data.gov.uk/id/local-authority/12UE,Huntingdonshire District Council,03/04/2017,03/04/2017,207454,JC/5106/290853,"2,041.13",J BREHENY CIVIL ENGINEERING LTD,CR000314,Off Street Parking,Sitework,359,
http://statistics.data.gov.uk/id/local-authority/12UE,Huntingdonshire District Council,05/04/2017,05/04/2017,207562,104278,250,LAVAT CONSULTING LTD T/A PSTAX,CR480410,Chief Executive & Comt,Consultants,711,
http://statistics.data.gov.uk/id/local-authority/12UE,Huntingdonshire District Council,05/04/2017,05/04/2017,207562,104278,"1,750.00",LAVAT CONSULTING LTD T/A PSTAX,CR480410,Chief Executive & Comt,Consultants,711,
http://statistics.data.gov.uk/id/local-authority/12UE,Huntingdonshire District Council,12/04/2017,12/04/2017,208027,5727,"2,000.00",CAMBRIDGESHIRE ACRE,CR025674,Housing Strategy,Contribution (Paid Out),810,
http://statistics.data.gov.uk/id/local-authority/12UE,Huntingdonshire District Council,18/04/2017,18/04/2017,208268,50089499,"2,000.00",HAYMARKET MEDIA GROUP LTD,CR479500,Planning M U'S,Recruitment Costs,120,
http://statistics.data.gov.uk/id/local-authority/12UE,Huntingdonshire District Council,27/04/2017,28/04/2017,208837,HDC040417_2,"1,950.00",ICT PROJECTS LTD,CR423374,Imd Shared Service,Hired Staff,100,
http://statistics.data.gov.uk/id/local-authority/12UE,Huntingdonshire District Council,06/04/2017,06/04/2017,207716,HDC061,"1,938.00",CFL ESTATE SERVICES,CR455208,Property Development And Mgt,Hired Staff,100,
http://statistics.data.gov.uk/id/local-authority/12UE,Huntingdonshire District Council,26/04/2017,27/04/2017,207965,IN0590198,"1,931.13",STAFFLINE GROUP,CR416827,Recycling,Hired Staff,100,
http://statistics.data.gov.uk/id/local-authority/12UE,Huntingdonshire District Council,26/04/2017,27/04/2017,208778,INV-4449,123.5,NOVUS COMPLIANCE SERVICES LTD,CR423524,Bus Stations,Plant & Equipment Maintenance,380,
http://statistics.data.gov.uk/id/local-authority/12UE,Huntingdonshire District Council,26/04/2017,27/04/2017,208778,INV-4449,286,NOVUS COMPLIANCE SERVICES LTD,CR423524,Countryside,Plant & Equipment Maintenance,380,
http://statistics.data.gov.uk/id/local-authority/12UE,Huntingdonshire District Council,26/04/2017,27/04/2017,208778,INV-4449,65,NOVUS COMPLIANCE SERVICES LTD,CR423524,Customer Service Centres,Plant & Equipment Maintenance,380,
http://statistics.data.gov.uk/id/local-authority/12UE,Huntingdonshire District Council,26/04/2017,27/04/2017,208778,INV-4449,253.5,NOVUS COMPLIANCE SERVICES LTD,CR423524,Environmental Imps Mgt,Plant & Equipment Maintenance,380,
http://statistics.data.gov.uk/id/local-authority/12UE,Huntingdonshire District Council,26/04/2017,27/04/2017,208778,INV-4449,156,NOVUS COMPLIANCE SERVICES LTD,CR423524,Markets,Plant & Equipment Maintenance,380,
http://statistics.data.gov.uk/id/local-authority/12UE,Huntingdonshire District Council,26/04/2017,27/04/2017,208778,INV-4449,624,NOVUS COMPLIANCE SERVICES LTD,CR423524,Off Street Parking,Plant & Equipment Maintenance,380,
http://statistics.data.gov.uk/id/local-authority/12UE,Huntingdonshire District Council,26/04/2017,27/04/2017,208778,INV-4449,188.5,NOVUS COMPLIANCE SERVICES LTD,CR423524,Public Conveniences,Plant & Equipment Maintenance,380,
http://statistics.data.gov.uk/id/local-authority/12UE,Huntingdonshire District Council,26/04/2017,27/04/2017,208778,INV-4449,97.5,NOVUS COMPLIANCE SERVICES LTD,CR423524,Countryside,Plant & Equipment Maintenance,380,
http://statistics.data.gov.uk/id/local-authority/12UE,Huntingdonshire District Council,26/04/2017,27/04/2017,208778,INV-4449,13,NOVUS COMPLIANCE SERVICES LTD,CR423524,Parks & Open Spaces,Plant & Equipment Maintenance,380,
http://statistics.data.gov.uk/id/local-authority/12UE,Huntingdonshire District Council,26/04/2017,27/04/2017,208778,INV-4449,91,NOVUS COMPLIANCE SERVICES LTD,CR423524,Public Conveniences,Plant & Equipment Maintenance,380,
http://statistics.data.gov.uk/id/local-authority/12UE,Huntingdonshire District Council,06/04/2017,07/04/2017,207672,5802171918,182,IBM UNITED KINGDOM LTD,CR482315,Software Capital,Consultants,711,
http://statistics.data.gov.uk/id/local-authority/12UE,Huntingdonshire District Council,06/04/2017,07/04/2017,207672,5802171918,"1,670.00",IBM UNITED KINGDOM LTD,CR482315,Software Capital,Consultants,711,
http://statistics.data.gov.uk/id/local-authority/12UE,Huntingdonshire District Council,05/04/2017,12/04/2017,207523,9068,"1,850.00",FORGE LEISURE LTD,CR413317,Leisure Centres Capital,Building Mtce,303,
http://statistics.data.gov.uk/id/local-authority/12UE,Huntingdonshire District Council,27/04/2017,28/04/2017,208830,124778,"1,800.00",IT TALENT SOLUTIONS LTD,CR482676,Imd Shared Service,Hired Staff,100,
http://statistics.data.gov.uk/id/local-authority/12UE,Huntingdonshire District Council,27/04/2017,28/04/2017,208834,39840,"1,765.00",STR GROUP,CR424704,Imd Shared Service,Hired Staff,100,
http://statistics.data.gov.uk/id/local-authority/12UE,Huntingdonshire District Council,27/04/2017,28/04/2017,208825,124758,"1,760.00",IT TALENT SOLUTIONS LTD,CR482676,Imd Shared Service,Hired Staff,100,
http://statistics.data.gov.uk/id/local-authority/12UE,Huntingdonshire District Council,03/04/2017,04/04/2017,207104,3273543,174.22,PHONOGRAPHIC PERFORMANCE LTD,CR411659,One Leisure Huntingdon,Licences,730,
http://statistics.data.gov.uk/id/local-authority/12UE,Huntingdonshire District Council,03/04/2017,04/04/2017,207104,3273543,244.04,PHONOGRAPHIC PERFORMANCE LTD,CR411659,One Leisure Ramsey,Licences,730,
http://statistics.data.gov.uk/id/local-authority/12UE,Huntingdonshire District Council,03/04/2017,04/04/2017,207104,3273543,244.04,PHONOGRAPHIC PERFORMANCE LTD,CR411659,One Leisure Sawtry,Licences,730,
http://statistics.data.gov.uk/id/local-authority/12UE,Huntingdonshire District Council,03/04/2017,04/04/2017,207104,3273543,845.42,PHONOGRAPHIC PERFORMANCE LTD,CR411659,One Leisure St Ives,Licences,730,
http://statistics.data.gov.uk/id/local-authority/12UE,Huntingdonshire District Council,03/04/2017,04/04/2017,207104,3273543,230.52,PHONOGRAPHIC PERFORMANCE LTD,CR411659,One Leisure St Neots,Licences,730,
http://statistics.data.gov.uk/id/local-authority/12UE,Huntingdonshire District Council,13/04/2017,13/04/2017,208226,1007460612,"1,731.15",HAYS,CR423917,Property Development And Mgt,Hired Staff,100,
http://statistics.data.gov.uk/id/local-authority/12UE,Huntingdonshire District Council,13/04/2017,13/04/2017,208227,1007441020,"1,731.15",HAYS,CR423917,Property Development And Mgt,Hired Staff,100,
http://statistics.data.gov.uk/id/local-authority/12UE,Huntingdonshire District Council,07/04/2017,07/04/2017,205972,441567103,"1,723.50",SWALEC,CR407130,Off Street Parking,Electricity,420,
http://statistics.data.gov.uk/id/local-authority/12UE,Huntingdonshire District Council,13/04/2017,20/04/2017,208243,20025143,"1,706.40",BT REDCARE,CR410623,Cctv Shared Service,Transmission Lines Rental,767,
http://statistics.data.gov.uk/id/local-authority/12UE,Huntingdonshire District Council,18/04/2017,18/04/2017,208271,6742998,288.75,ANTALIS LTD,CR479468,Document Centre,Paper,562,
http://statistics.data.gov.uk/id/local-authority/12UE,Huntingdonshire District Council,18/04/2017,18/04/2017,208271,6742998,53.41,ANTALIS LTD,CR479468,Document Centre,Paper,562,
http://statistics.data.gov.uk/id/local-authority/12UE,Huntingdonshire District Council,18/04/2017,18/04/2017,208271,6742998,247.28,ANTALIS LTD,CR479468,Document Centre,Paper,562,
http://statistics.data.gov.uk/id/local-authority/12UE,Huntingdonshire District Council,18/04/2017,18/04/2017,208271,6742998,107.8,ANTALIS LTD,CR479468,Document Centre,Paper,562,
http://statistics.data.gov.uk/id/local-authority/12UE,Huntingdonshire District Council,18/04/2017,18/04/2017,208271,6742998,160.3,ANTALIS LTD,CR479468,Document Centre,Paper,562,
http://statistics.data.gov.uk/id/local-authority/12UE,Huntingdonshire District Council,18/04/2017,18/04/2017,208271,6742998,59.25,ANTALIS LTD,CR479468,Document Centre,Paper,562,
http://statistics.data.gov.uk/id/local-authority/12UE,Huntingdonshire District Council,18/04/2017,18/04/2017,208271,6742998,160.13,ANTALIS LTD,CR479468,Document Centre,Paper,562,
http://statistics.data.gov.uk/id/local-authority/12UE,Huntingdonshire District Council,18/04/2017,18/04/2017,208271,6742998,59.16,ANTALIS LTD,CR479468,Document Centre,Paper,562,
http://statistics.data.gov.uk/id/local-authority/12UE,Huntingdonshire District Council,18/04/2017,18/04/2017,208271,6742998,33.58,ANTALIS LTD,CR479468,Document Centre,Paper,562,
http://statistics.data.gov.uk/id/local-authority/12UE,Huntingdonshire District Council,18/04/2017,18/04/2017,208271,6742998,490,ANTALIS LTD,CR479468,Document Centre,Paper,562,
http://statistics.data.gov.uk/id/local-authority/12UE,Huntingdonshire District Council,27/04/2017,27/04/2017,610686,REDACTED,"1,650.00",NOONAN CRANE,CR479774,Housing Tenant Debtors,Cash Advance,6,
http://statistics.data.gov.uk/id/local-authority/12UE,Huntingdonshire District Council,19/04/2017,20/04/2017,208055,427881,"1,596.10",HEASELL ELECTROMECHANICAL SERVICES LTD,CR422407,Leisure Centres Capital,Building Mtce,303,
http://statistics.data.gov.uk/id/local-authority/12UE,Huntingdonshire District Council,03/04/2017,03/04/2017,207457,JC/5106,"1,573.24",J BREHENY CIVIL ENGINEERING LTD,CR000314,Watercourses,Sitework,359,
http://statistics.data.gov.uk/id/local-authority/12UE,Huntingdonshire District Council,24/04/2017,26/04/2017,208611,946323,"1,572.62",HIRE OR BUY GROUP LTD,CR000707,Countryside,Equipment,500,
http://statistics.data.gov.uk/id/local-authority/12UE,Huntingdonshire District Council,12/04/2017,18/04/2017,208078,9174182,"1,567.50",CANON UK LTD,CR409013,Document Centre,Equipment Maintenance,511,
http://statistics.data.gov.uk/id/local-authority/12UE,Huntingdonshire District Council,12/04/2017,12/04/2017,610227,REDACTED,"1,566.00",CAMBRIDGE PROPERTY PRACTICE,CR480715,Homelessness Management,Incentive Payment,816,
http://statistics.data.gov.uk/id/local-authority/12UE,Huntingdonshire District Council,26/04/2017,27/04/2017,208736,IN0593000,"1,565.00",STAFFLINE GROUP,CR416827,Street Cleaning,Hired Staff,100,
http://statistics.data.gov.uk/id/local-authority/12UE,Huntingdonshire District Council,05/04/2017,12/04/2017,207720,INV-5621,187.5,CFB LIMITED,CR480886,One Leisure Huntingdon,Advertising/Promoting Services,255,
http://statistics.data.gov.uk/id/local-authority/12UE,Huntingdonshire District Council,05/04/2017,12/04/2017,207720,INV-5621,187.5,CFB LIMITED,CR480886,One Leisure St Ives,Advertising/Promoting Services,255,
http://statistics.data.gov.uk/id/local-authority/12UE,Huntingdonshire District Council,05/04/2017,12/04/2017,207720,INV-5621,187.5,CFB LIMITED,CR480886,One Leisure St Neots,Advertising/Promoting Services,255,
http://statistics.data.gov.uk/id/local-authority/12UE,Huntingdonshire District Council,05/04/2017,12/04/2017,207720,INV-5621,195.36,CFB LIMITED,CR480886,One Leisure Huntingdon,Advertising/Promoting Services,255,
http://statistics.data.gov.uk/id/local-authority/12UE,Huntingdonshire District Council,05/04/2017,12/04/2017,207720,INV-5621,191.42,CFB LIMITED,CR480886,One Leisure Ramsey,Advertising/Promoting Services,255,
http://statistics.data.gov.uk/id/local-authority/12UE,Huntingdonshire District Council,05/04/2017,12/04/2017,207720,INV-5621,191.42,CFB LIMITED,CR480886,One Leisure Sawtry,Advertising/Promoting Services,255,
http://statistics.data.gov.uk/id/local-authority/12UE,Huntingdonshire District Council,05/04/2017,12/04/2017,207720,INV-5621,195.36,CFB LIMITED,CR480886,One Leisure St Ives,Advertising/Promoting Services,255,
http://statistics.data.gov.uk/id/local-authority/12UE,Huntingdonshire District Council,05/04/2017,12/04/2017,207720,INV-5621,195.36,CFB LIMITED,CR480886,One Leisure St Neots,Advertising/Promoting Services,255,
http://statistics.data.gov.uk/id/local-authority/12UE,Huntingdonshire District Council,05/04/2017,05/04/2017,207557,1007418058,"1,525.00",HAYS,CR423917,Property Development And Mgt,Hired Staff,100,
http://statistics.data.gov.uk/id/local-authority/12UE,Huntingdonshire District Council,18/04/2017,18/04/2017,208270,1007356203,"1,525.00",HAYS,CR423917,Property Development And Mgt,Hired Staff,100,
http://statistics.data.gov.uk/id/local-authority/12UE,Huntingdonshire District Council,18/04/2017,18/04/2017,208272,1007334254,"1,525.00",HAYS,CR423917,Property Development And Mgt,Hired Staff,100,
http://statistics.data.gov.uk/id/local-authority/12UE,Huntingdonshire District Council,27/04/2017,27/04/2017,208679,6269,"1,502.00",PRIORY BUILDINGS (ST NEOTS) LTD,CR410900,Improvement Grants,Mandatory Grants,801,
http://statistics.data.gov.uk/id/local-authority/12UE,Huntingdonshire District Council,11/04/2017,11/04/2017,207947,1111172979,"1,500.00",MACDONALD & COMPANY FREELANCE LTD,CR424684,Property Development And Mgt,Hired Staff,100,
http://statistics.data.gov.uk/id/local-authority/12UE,Huntingdonshire District Council,26/04/2017,27/04/2017,208735,IN0591399,"1,490.71",STAFFLINE GROUP,CR416827,Street Cleaning,Hired Staff,100,
http://statistics.data.gov.uk/id/local-authority/12UE,Huntingdonshire District Council,12/04/2017,12/04/2017,207967,IN0590201,"1,439.73",STAFFLINE GROUP,CR416827,Street Cleaning,Hired Staff,100,
http://statistics.data.gov.uk/id/local-authority/12UE,Huntingdonshire District Council,05/04/2017,06/04/2017,207620,HMSLI1700059,"1,388.84",HORNBILL SERVICE MANAGEMENT LIMITED,CR423491,Imd Shared Service,Software,206,
http://statistics.data.gov.uk/id/local-authority/12UE,Huntingdonshire District Council,05/04/2017,05/04/2017,207559,1007416888,"1,380.00",HAYS,CR423917,Property Development And Mgt,Hired Staff,100,
http://statistics.data.gov.uk/id/local-authority/12UE,Huntingdonshire District Council,19/04/2017,20/04/2017,208332,38451,"1,334.00",DATA INTERCHANGE PLC,CR411538,Imd Shared Service,Software,206,
http://statistics.data.gov.uk/id/local-authority/12UE,Huntingdonshire District Council,19/04/2017,20/04/2017,208246,7080615622,"1,312.21",HONEYWELL NOVAR SYSTEMS,CR406826,One Leisure St Ives,Fire & Security,450,
http://statistics.data.gov.uk/id/local-authority/12UE,Huntingdonshire District Council,11/04/2017,11/04/2017,207989,15497,27.9,JADE SECURITY SERVICES LTD,CR422256,Countryside,Cash Collection,702,
http://statistics.data.gov.uk/id/local-authority/12UE,Huntingdonshire District Council,11/04/2017,11/04/2017,207989,15497,320.85,JADE SECURITY SERVICES LTD,CR422256,Financial Services,Cash Collection,702,
http://statistics.data.gov.uk/id/local-authority/12UE,Huntingdonshire District Council,11/04/2017,11/04/2017,207989,15497,251.1,JADE SECURITY SERVICES LTD,CR422256,One Leisure Huntingdon,Cash Collection,702,
http://statistics.data.gov.uk/id/local-authority/12UE,Huntingdonshire District Council,11/04/2017,11/04/2017,207989,15497,55.8,JADE SECURITY SERVICES LTD,CR422256,One Leisure Ramsey,Cash Collection,702,
http://statistics.data.gov.uk/id/local-authority/12UE,Huntingdonshire District Council,11/04/2017,11/04/2017,207989,15497,55.8,JADE SECURITY SERVICES LTD,CR422256,One Leisure Sawtry,Cash Collection,702,
http://statistics.data.gov.uk/id/local-authority/12UE,Huntingdonshire District Council,11/04/2017,11/04/2017,207989,15497,195.3,JADE SECURITY SERVICES LTD,CR422256,One Leisure St Ives,Cash Collection,702,
http://statistics.data.gov.uk/id/local-authority/12UE,Huntingdonshire District Council,11/04/2017,11/04/2017,207989,15497,390.6,JADE SECURITY SERVICES LTD,CR422256,One Leisure St Neots,Cash Collection,702,
http://statistics.data.gov.uk/id/local-authority/12UE,Huntingdonshire District Council,12/04/2017,12/04/2017,208068,12489090790,"1,281.91",E-ON ENERGY,CR416430,One Leisure Ramsey,Gas,421,
http://statistics.data.gov.uk/id/local-authority/12UE,Huntingdonshire District Council,11/04/2017,11/04/2017,207939,1677876,0,WEIGHTMANS,CR455744,Chief Executive & Comt,Ins (Service Related),260,
http://statistics.data.gov.uk/id/local-authority/12UE,Huntingdonshire District Council,11/04/2017,11/04/2017,207939,1677876,"1,254.82",WEIGHTMANS,CR455744,Chief Executive & Comt,Ins (Service Related),260,
http://statistics.data.gov.uk/id/local-authority/12UE,Huntingdonshire District Council,24/04/2017,26/04/2017,208622,DE11032288,"1,228.04",DENNIS EAGLE LTD,CR000200,Recycling,Vehicle Parts & Fittings,625,
http://statistics.data.gov.uk/id/local-authority/12UE,Huntingdonshire District Council,11/04/2017,11/04/2017,207925,2017/1406,"1,218.00",JBA CONSULTING,CR423103,Local Development Framework,Consultants,711,
http://statistics.data.gov.uk/id/local-authority/12UE,Huntingdonshire District Council,12/04/2017,12/04/2017,208066,1.33136E+11,"1,173.01",E-ON ENERGY,CR416430,Pathfinder House Site,Gas,421,
http://statistics.data.gov.uk/id/local-authority/12UE,Huntingdonshire District Council,12/04/2017,12/04/2017,208070,12489088700,"1,170.35",E-ON ENERGY,CR416430,One Leisure Sawtry,Gas,421,
http://statistics.data.gov.uk/id/local-authority/12UE,Huntingdonshire District Council,26/04/2017,27/04/2017,208434,113120635,"1,162.50",KONE LIFTS LTD,CR000483,Pathfinder House Site,Plant & Equipment Maintenance,380,
http://statistics.data.gov.uk/id/local-authority/12UE,Huntingdonshire District Council,03/04/2017,03/04/2017,207449,724067,578.6,GLASDON UK LTD,CR002827,Pathfinder House Site,Refuse Sacks,552,
http://statistics.data.gov.uk/id/local-authority/12UE,Huntingdonshire District Council,03/04/2017,03/04/2017,207449,724067,578.6,GLASDON UK LTD,CR002827,Pathfinder House Site,Refuse Sacks,552,
http://statistics.data.gov.uk/id/local-authority/12UE,Huntingdonshire District Council,11/04/2017,11/04/2017,207935,I6700,648,ZURICH MUNICIPAL,CR003638,Arboricultural Team,Insurance Excess,797,
http://statistics.data.gov.uk/id/local-authority/12UE,Huntingdonshire District Council,11/04/2017,11/04/2017,207935,I6700,500,ZURICH MUNICIPAL,CR003638,Domestic Refuse,Insurance Excess,797,
http://statistics.data.gov.uk/id/local-authority/12UE,Huntingdonshire District Council,11/04/2017,12/04/2017,207936,124681,"1,125.00",IT TALENT SOLUTIONS LTD,CR482676,Imd Shared Service,Hired Staff,100,
http://statistics.data.gov.uk/id/local-authority/12UE,Huntingdonshire District Council,11/04/2017,11/04/2017,208019,4309,906.11,NEWLYN PLC,CR409114,Council Tax,Bailiffs,703,
http://statistics.data.gov.uk/id/local-authority/12UE,Huntingdonshire District Council,11/04/2017,11/04/2017,208019,4309,215.5,NEWLYN PLC,CR409114,Council Tax,Bailiffs,703,
http://statistics.data.gov.uk/id/local-authority/12UE,Huntingdonshire District Council,06/04/2017,07/04/2017,207636,SINV00106644,"1,119.20",BIST,CR422733,Imd Shared Service,Other I T Hardware,203,
http://statistics.data.gov.uk/id/local-authority/12UE,Huntingdonshire District Council,06/04/2017,06/04/2017,207715,HDC062,"1,092.00",CFL ESTATE SERVICES,CR455208,Property Development And Mgt,Hired Staff,100,
http://statistics.data.gov.uk/id/local-authority/12UE,Huntingdonshire District Council,24/04/2017,26/04/2017,208632,273301I,249.66,A C COMMERCIALS,CR000141,Grounds Maintenance,Vehicle Parts & Fittings,625,
http://statistics.data.gov.uk/id/local-authority/12UE,Huntingdonshire District Council,24/04/2017,26/04/2017,208632,273301I,21.71,A C COMMERCIALS,CR000141,Fleet Management,Vehicle Parts & Fittings,625,
http://statistics.data.gov.uk/id/local-authority/12UE,Huntingdonshire District Council,24/04/2017,26/04/2017,208632,273301I,379.92,A C COMMERCIALS,CR000141,Recycling,Vehicle Parts & Fittings,625,
http://statistics.data.gov.uk/id/local-authority/12UE,Huntingdonshire District Council,24/04/2017,26/04/2017,208632,273301I,162.82,A C COMMERCIALS,CR000141,Domestic Refuse,Vehicle Parts & Fittings,625,
http://statistics.data.gov.uk/id/local-authority/12UE,Huntingdonshire District Council,24/04/2017,26/04/2017,208632,273301I,271.37,A C COMMERCIALS,CR000141,Street Cleaning,Vehicle Parts & Fittings,625,
http://statistics.data.gov.uk/id/local-authority/12UE,Huntingdonshire District Council,11/04/2017,12/04/2017,207960,452104,"1,082.70",STORM TECHNOLOGIES,CR480909,Imd Shared Service,Other I T Hardware,203,
http://statistics.data.gov.uk/id/local-authority/12UE,Huntingdonshire District Council,05/04/2017,06/04/2017,207623,UK100420175562,"1,055.46",VODAFONE CABLE & WIRELESS,CR482316,Imd Shared Service,I T Line Rental,248,
http://statistics.data.gov.uk/id/local-authority/12UE,Huntingdonshire District Council,19/04/2017,20/04/2017,208275,INV-1775,"1,050.00",KOALA CREATIVE LTD,CR423981,One Leisure St Ives,Advertising/Promoting Services,255,
http://statistics.data.gov.uk/id/local-authority/12UE,Huntingdonshire District Council,18/04/2017,18/04/2017,208266,9054203339,918.47,ROYAL MAIL,CR027083,Document Centre,Postage,231,
http://statistics.data.gov.uk/id/local-authority/12UE,Huntingdonshire District Council,18/04/2017,18/04/2017,208266,9054203339,123.19,ROYAL MAIL,CR027083,Electoral Registration,Postage,231,
http://statistics.data.gov.uk/id/local-authority/12UE,Huntingdonshire District Council,12/04/2017,12/04/2017,208037,6864,"1,040.50",THE POOL & SPA SPECIALISTS LTD,CR424623,Leisure Centres Capital,Building Mtce,303,
http://statistics.data.gov.uk/id/local-authority/12UE,Huntingdonshire District Council,03/04/2017,04/04/2017,207109,64710318,"1,038.76",PHS GROUP LTD,CR032018,One Leisure St Ives,Equipment Hire,507,
http://statistics.data.gov.uk/id/local-authority/12UE,Huntingdonshire District Council,11/04/2017,12/04/2017,207945,124363,"1,038.14",TWOFOLD CONSULTING,CR453929,Imd Shared Service,Equipment Maintenance,511,
http://statistics.data.gov.uk/id/local-authority/12UE,Huntingdonshire District Council,19/04/2017,19/04/2017,208338,19917,"1,028.55",M WATSON CONSTRUCTION LTD,CR480595,Improvement Grants,Mandatory Grants,801,
http://statistics.data.gov.uk/id/local-authority/12UE,Huntingdonshire District Council,11/04/2017,12/04/2017,208023,58619,"1,018.31",BEEBYS LIMITED,CR415822,Bus Stations,Building Cleaning,440,
http://statistics.data.gov.uk/id/local-authority/12UE,Huntingdonshire District Council,11/04/2017,11/04/2017,207916,SL40041,"1,009.00",FOSTER PROPERTY MAINTENANCE LTD,CR412056,Improvement Grants,Mandatory Grants,801,
http://statistics.data.gov.uk/id/local-authority/12UE,Huntingdonshire District Council,12/04/2017,12/04/2017,205260,96338484,"1,000.00",TERBERG MATEC UK LTD,CR402183,Recycling,Vehicle Accident Damage,623,
http://statistics.data.gov.uk/id/local-authority/12UE,Huntingdonshire District Council,19/04/2017,20/04/2017,208342,916,989.92,ABBEY COLLEGE,CR128984,One Leisure Ramsey,Water & Sewerage,432,
http://statistics.data.gov.uk/id/local-authority/12UE,Huntingdonshire District Council,24/04/2017,26/04/2017,208615,1703/45453,980,GULLIVERS TRUCK HIRE LTD,CR477663,Domestic Refuse,Vehicle Hire,607,
http://statistics.data.gov.uk/id/local-authority/12UE,Huntingdonshire District Council,24/04/2017,26/04/2017,204406,S3089507,967,FIRST IN SERVICE LTD,CR422285,Pathfinder House Site,Building Mtce,303,
http://statistics.data.gov.uk/id/local-authority/12UE,Huntingdonshire District Council,24/04/2017,26/04/2017,208682,1130572781,943.56,KONICA MINOLTA,CR478866,Document Centre,Equipment Maintenance,511,
http://statistics.data.gov.uk/id/local-authority/12UE,Huntingdonshire District Council,26/04/2017,27/04/2017,208657,38SI 3845690,941.51,BRENNTAG UK LTD,CR015017,One Leisure St Neots,Chemicals,551,
http://statistics.data.gov.uk/id/local-authority/12UE,Huntingdonshire District Council,07/04/2017,07/04/2017,207897,700616,308,CALLCREDIT LTD,CR455548,Council Tax,Enquiries,723,
http://statistics.data.gov.uk/id/local-authority/12UE,Huntingdonshire District Council,07/04/2017,07/04/2017,207897,700616,31,CALLCREDIT LTD,CR455548,Housing  Benefits Admin,Enquiries,723,
http://statistics.data.gov.uk/id/local-authority/12UE,Huntingdonshire District Council,07/04/2017,07/04/2017,207897,700616,416,CALLCREDIT LTD,CR455548,Financial Services Mus,Enquiries,723,
http://statistics.data.gov.uk/id/local-authority/12UE,Huntingdonshire District Council,07/04/2017,07/04/2017,207897,700616,15,CALLCREDIT LTD,CR455548,Housing Management Units,Enquiries,723,
http://statistics.data.gov.uk/id/local-authority/12UE,Huntingdonshire District Council,07/04/2017,07/04/2017,207897,700616,170,CALLCREDIT LTD,CR455548,Revenue Services Mus,Enquiries,723,
http://statistics.data.gov.uk/id/local-authority/12UE,Huntingdonshire District Council,19/04/2017,20/04/2017,208353,19632,933.6,KING STREET HOUSING SOCIETY,CR409301,Homelessness Management,Management Charge,733,
http://statistics.data.gov.uk/id/local-authority/12UE,Huntingdonshire District Council,13/04/2017,13/04/2017,208222,1007439697,915,HAYS,CR423917,Property Development And Mgt,Hired Staff,100,
http://statistics.data.gov.uk/id/local-authority/12UE,Huntingdonshire District Council,26/04/2017,26/04/2017,208764,1007480628,915,HAYS,CR423917,Property Development And Mgt,Hired Staff,100,
http://statistics.data.gov.uk/id/local-authority/12UE,Huntingdonshire District Council,26/04/2017,26/04/2017,208765,1007480629,915,HAYS,CR423917,Property Development And Mgt,Hired Staff,100,
http://statistics.data.gov.uk/id/local-authority/12UE,Huntingdonshire District Council,27/04/2017,28/04/2017,208809,461124,773.45,STORM TECHNOLOGIES,CR480909,Imd Shared Service,Other I T Hardware,203,
http://statistics.data.gov.uk/id/local-authority/12UE,Huntingdonshire District Council,27/04/2017,28/04/2017,208809,461124,135,STORM TECHNOLOGIES,CR480909,Imd Shared Service,Other I T Hardware,203,
http://statistics.data.gov.uk/id/local-authority/12UE,Huntingdonshire District Council,11/04/2017,12/04/2017,207934,124625,900,IT TALENT SOLUTIONS LTD,CR482676,Imd Shared Service,Hired Staff,100,
http://statistics.data.gov.uk/id/local-authority/12UE,Huntingdonshire District Council,27/04/2017,28/04/2017,208828,124744,900,IT TALENT SOLUTIONS LTD,CR482676,Imd Shared Service,Hired Staff,100,
http://statistics.data.gov.uk/id/local-authority/12UE,Huntingdonshire District Council,12/04/2017,12/04/2017,208047,481677109,898.95,SWALEC,CR407130,One Leisure Huntingdon,Electricity,420,
http://statistics.data.gov.uk/id/local-authority/12UE,Huntingdonshire District Council,19/04/2017,20/04/2017,208234,758427,879.3,BEN BURGESS & COMPANY,CR453903,One Leisure St Ives,Vehicle Maintenance External,619,
http://statistics.data.gov.uk/id/local-authority/12UE,Huntingdonshire District Council,11/04/2017,11/04/2017,208018,971935,876.53,MORGAN HUNT PUBLIC UK LTD,CR415693,Housing  Benefits Admin,Hired Staff,100,
http://statistics.data.gov.uk/id/local-authority/12UE,Huntingdonshire District Council,20/04/2017,20/04/2017,208373,SI221753,860,KOMPAN LTD,CR405497,Parks & Open Spaces,Playground Equipment,360,
http://statistics.data.gov.uk/id/local-authority/12UE,Huntingdonshire District Council,27/04/2017,27/04/2017,208796,DINV / 222351,851.43,SOUTH CAMBRIDGESHIRE DISTRICT COUNCIL,CR405127,Housing Register,Management Charge,733,
http://statistics.data.gov.uk/id/local-authority/12UE,Huntingdonshire District Council,06/04/2017,06/04/2017,207718,970908,839.5,MORGAN HUNT PUBLIC UK LTD,CR415693,Housing  Benefits Admin,Hired Staff,100,
http://statistics.data.gov.uk/id/local-authority/12UE,Huntingdonshire District Council,12/04/2017,12/04/2017,207697,DE11029192,831.59,DENNIS EAGLE LTD,CR000200,Domestic Refuse,Vehicle Parts & Fittings,625,
http://statistics.data.gov.uk/id/local-authority/12UE,Huntingdonshire District Council,26/04/2017,27/04/2017,207968,96340173,249.26,TERBERG MATEC UK LTD,CR402183,Recycling,Vehicle Parts & Fittings,625,
http://statistics.data.gov.uk/id/local-authority/12UE,Huntingdonshire District Council,26/04/2017,27/04/2017,207968,96340173,581.62,TERBERG MATEC UK LTD,CR402183,Domestic Refuse,Vehicle Parts & Fittings,625,
http://statistics.data.gov.uk/id/local-authority/12UE,Huntingdonshire District Council,27/04/2017,28/04/2017,208810,105775/109532,825.63,GALTEC SOLUTIONS LTD,CR423396,Imd Shared Service,Other I T Hardware,203,
http://statistics.data.gov.uk/id/local-authority/12UE,Huntingdonshire District Council,27/04/2017,28/04/2017,208803,105285/109052,819.63,GALTEC SOLUTIONS LTD,CR423396,Imd Shared Service,Other I T Hardware,203,
http://statistics.data.gov.uk/id/local-authority/12UE,Huntingdonshire District Council,07/04/2017,07/04/2017,206391,941403268,817.9,SWALEC,CR407130,Countryside,Electricity,420,
http://statistics.data.gov.uk/id/local-authority/12UE,Huntingdonshire District Council,11/04/2017,12/04/2017,207938,124651,814,IT TALENT SOLUTIONS LTD,CR482676,Imd Shared Service,Hired Staff,100,
http://statistics.data.gov.uk/id/local-authority/12UE,Huntingdonshire District Council,11/04/2017,12/04/2017,207940,124655,814,IT TALENT SOLUTIONS LTD,CR482676,Imd Shared Service,Hired Staff,100,
http://statistics.data.gov.uk/id/local-authority/12UE,Huntingdonshire District Council,13/04/2017,13/04/2017,208231,600231304,808.83,BRITISH GAS BUSINESS,CR478619,Countryside,Gas,421,
http://statistics.data.gov.uk/id/local-authority/12UE,Huntingdonshire District Council,26/04/2017,27/04/2017,208690,64839104,808.71,PHS GROUP LTD,CR032018,One Leisure Huntingdon,Equipment Hire,507,
http://statistics.data.gov.uk/id/local-authority/12UE,Huntingdonshire District Council,05/04/2017,05/04/2017,207656,B030417,807.39,JACOBS,CR422350,Council Tax,Bailiffs,703,
http://statistics.data.gov.uk/id/local-authority/12UE,Huntingdonshire District Council,19/04/2017,20/04/2017,208063,843,800,MIRAMAR ENGINEERING LTD,CR424694,Leisure Centres Capital,Building Mtce,303,
http://statistics.data.gov.uk/id/local-authority/12UE,Huntingdonshire District Council,19/04/2017,20/04/2017,610500,REDACTED,800,SHARMAN QUINNEY RESIDENTIAL LETTINGS,CR424106,Housing Tenant Debtors,Cash Advance,6,
http://statistics.data.gov.uk/id/local-authority/12UE,Huntingdonshire District Council,19/04/2017,20/04/2017,208354,61663,59.6,MASKEARAID LTD,CR033423,One Leisure Ramsey,Advertising/Promoting Services,255,
http://statistics.data.gov.uk/id/local-authority/12UE,Huntingdonshire District Council,19/04/2017,20/04/2017,208354,61663,717.9,MASKEARAID LTD,CR033423,One Leisure St Ives,Advertising/Promoting Services,255,
http://statistics.data.gov.uk/id/local-authority/12UE,Huntingdonshire District Council,27/04/2017,28/04/2017,208808,461328,773.45,STORM TECHNOLOGIES,CR480909,Imd Shared Service,Other I T Hardware,203,
http://statistics.data.gov.uk/id/local-authority/12UE,Huntingdonshire District Council,26/04/2017,27/04/2017,208420,RSIN0216689,750,RIGBY TAYLOR LTD,CR001345,Grounds Maintenance,Equipment,500,
http://statistics.data.gov.uk/id/local-authority/12UE,Huntingdonshire District Council,24/04/2017,26/04/2017,208716,60227246,733.16,AEBI SCHMIDT,CR025706,Street Cleaning,Vehicle Parts & Fittings,625,
http://statistics.data.gov.uk/id/local-authority/12UE,Huntingdonshire District Council,24/04/2017,26/04/2017,208636,1704/47872,730,GULLIVERS TRUCK HIRE LTD,CR477663,Domestic Refuse,Vehicle Hire,607,
http://statistics.data.gov.uk/id/local-authority/12UE,Huntingdonshire District Council,24/04/2017,26/04/2017,208637,1704/47873,730,GULLIVERS TRUCK HIRE LTD,CR477663,Domestic Refuse,Vehicle Hire,607,
http://statistics.data.gov.uk/id/local-authority/12UE,Huntingdonshire District Council,24/04/2017,26/04/2017,208639,1704/49570,730,GULLIVERS TRUCK HIRE LTD,CR477663,Domestic Refuse,Vehicle Hire,607,
http://statistics.data.gov.uk/id/local-authority/12UE,Huntingdonshire District Council,24/04/2017,26/04/2017,208642,1704/50952,730,GULLIVERS TRUCK HIRE LTD,CR477663,Domestic Refuse,Vehicle Hire,607,
http://statistics.data.gov.uk/id/local-authority/12UE,Huntingdonshire District Council,24/04/2017,26/04/2017,208643,1704/50953,730,GULLIVERS TRUCK HIRE LTD,CR477663,Domestic Refuse,Vehicle Hire,607,
http://statistics.data.gov.uk/id/local-authority/12UE,Huntingdonshire District Council,27/04/2017,27/04/2017,610502,22668,730,PREMIER SERVICE AND INSTALLATION,CR453810,Improvement Grants,Mandatory Grants,801,
http://statistics.data.gov.uk/id/local-authority/12UE,Huntingdonshire District Council,24/04/2017,26/04/2017,208631,DE11032289,723.61,DENNIS EAGLE LTD,CR000200,Domestic Refuse,Vehicle Parts & Fittings,625,
http://statistics.data.gov.uk/id/local-authority/12UE,Huntingdonshire District Council,21/04/2017,21/04/2017,208605,973103,710.7,MORGAN HUNT PUBLIC UK LTD,CR415693,Housing  Benefits Admin,Hired Staff,100,
http://statistics.data.gov.uk/id/local-authority/12UE,Huntingdonshire District Council,26/04/2017,27/04/2017,208747,33080294,353.67,F P SMITH MOTORS LTD,CR406475,Grounds Maintenance,Vehicle Parts & Fittings,625,
http://statistics.data.gov.uk/id/local-authority/12UE,Huntingdonshire District Council,26/04/2017,27/04/2017,208747,33080294,353.68,F P SMITH MOTORS LTD,CR406475,Street Cleaning,Vehicle Parts & Fittings,625,
http://statistics.data.gov.uk/id/local-authority/12UE,Huntingdonshire District Council,26/04/2017,26/04/2017,208802,974384,698.86,MORGAN HUNT PUBLIC UK LTD,CR415693,Housing  Benefits Admin,Hired Staff,100,
http://statistics.data.gov.uk/id/local-authority/12UE,Huntingdonshire District Council,13/04/2017,20/04/2017,207969,10727281,698,CAMBRIDGESHIRE COUNTY COUNCIL,CR006678,Air Quality,Subcontractors,777,
http://statistics.data.gov.uk/id/local-authority/12UE,Huntingdonshire District Council,26/04/2017,27/04/2017,208595,658822,633.06,LACONS,CR422174,One Leisure St Ives,Bar Provisions,558,
http://statistics.data.gov.uk/id/local-authority/12UE,Huntingdonshire District Council,26/04/2017,27/04/2017,208595,658822,46.96,LACONS,CR422174,One Leisure St Ives,Gas Cylinders (Incl. Bars),567,
http://statistics.data.gov.uk/id/local-authority/12UE,Huntingdonshire District Council,19/04/2017,20/04/2017,208329,R020577,680,PREMIER IT RECRUITMENT LTD,CR454029,Imd Shared Service,Hired Staff,100,
http://statistics.data.gov.uk/id/local-authority/12UE,Huntingdonshire District Council,04/04/2017,05/04/2017,207357,900774391,672.54,PORTAKABIN LTD,CR478566,Miscellaneous Grants,Grants (Paid Out),800,
http://statistics.data.gov.uk/id/local-authority/12UE,Huntingdonshire District Council,19/04/2017,20/04/2017,208327,122548,666.71,TWOFOLD CONSULTING,CR453929,Imd Shared Service,Equipment Maintenance,511,
http://statistics.data.gov.uk/id/local-authority/12UE,Huntingdonshire District Council,03/04/2017,04/04/2017,207101,64709489,662.84,PHS GROUP LTD,CR032018,One Leisure Sawtry,Equipment Maintenance,511,
http://statistics.data.gov.uk/id/local-authority/12UE,Huntingdonshire District Council,27/04/2017,28/04/2017,208827,124725,660,IT TALENT SOLUTIONS LTD,CR482676,Imd Shared Service,Hired Staff,100,
http://statistics.data.gov.uk/id/local-authority/12UE,Huntingdonshire District Council,19/04/2017,20/04/2017,610501,REDACTED,660,THE WILLOWS GUEST HOUSE,CR411007,Homelessness Management,Bed & Breakfast Payment,818,
http://statistics.data.gov.uk/id/local-authority/12UE,Huntingdonshire District Council,03/04/2017,04/04/2017,207097,INV-5591,162.8,CFB LIMITED,CR480886,One Leisure Huntingdon,Advertising/Promoting Services,255,
http://statistics.data.gov.uk/id/local-authority/12UE,Huntingdonshire District Council,03/04/2017,04/04/2017,207097,INV-5591,81.39,CFB LIMITED,CR480886,One Leisure Ramsey,Advertising/Promoting Services,255,
http://statistics.data.gov.uk/id/local-authority/12UE,Huntingdonshire District Council,03/04/2017,04/04/2017,207097,INV-5591,81.39,CFB LIMITED,CR480886,One Leisure Sawtry,Advertising/Promoting Services,255,
http://statistics.data.gov.uk/id/local-authority/12UE,Huntingdonshire District Council,03/04/2017,04/04/2017,207097,INV-5591,162.8,CFB LIMITED,CR480886,One Leisure St Ives,Advertising/Promoting Services,255,
http://statistics.data.gov.uk/id/local-authority/12UE,Huntingdonshire District Council,03/04/2017,04/04/2017,207097,INV-5591,162.8,CFB LIMITED,CR480886,One Leisure St Neots,Advertising/Promoting Services,255,
http://statistics.data.gov.uk/id/local-authority/12UE,Huntingdonshire District Council,24/04/2017,26/04/2017,208616,106707,650,ARTHUR IBBETT LTD,CR000430,Grounds Maintenance,Equipment,500,
http://statistics.data.gov.uk/id/local-authority/12UE,Huntingdonshire District Council,26/04/2017,26/04/2017,208801,974385,648.65,MORGAN HUNT PUBLIC UK LTD,CR415693,Housing  Benefits Admin,Hired Staff,100,
http://statistics.data.gov.uk/id/local-authority/12UE,Huntingdonshire District Council,20/04/2017,20/04/2017,208053,17/226,636,NABMA,CR030578,Markets,Corporate Subscriptions,754,
http://statistics.data.gov.uk/id/local-authority/12UE,Huntingdonshire District Council,03/04/2017,04/04/2017,207093,90187767,633.36,G4S SECURE SOLUTIONS (UK) LTD,CR454030,One Leisure Huntingdon,Fire & Security,450,
http://statistics.data.gov.uk/id/local-authority/12UE,Huntingdonshire District Council,03/04/2017,04/04/2017,207094,90187810,633.36,G4S SECURE SOLUTIONS (UK) LTD,CR454030,One Leisure Huntingdon,Fire & Security,450,
http://statistics.data.gov.uk/id/local-authority/12UE,Huntingdonshire District Council,19/04/2017,20/04/2017,208322,28721,630,GENESIS  LIFTS LTD,CR478241,One Leisure St Ives,Equipment Maintenance,511,
http://statistics.data.gov.uk/id/local-authority/12UE,Huntingdonshire District Council,27/04/2017,28/04/2017,208813,SINV00107370,627,BIST,CR422733,Imd Shared Service,Other I T Hardware,203,
http://statistics.data.gov.uk/id/local-authority/12UE,Huntingdonshire District Council,19/04/2017,19/04/2017,208336,DIHH/00003018,619.95,LUMINUS HOMES,CR401276,Housing Services Other,Building Mtce,303,
http://statistics.data.gov.uk/id/local-authority/12UE,Huntingdonshire District Council,24/04/2017,26/04/2017,208630,559811,609.73,ECOCLEEN SERVICES LIMITED,CR406985,Public Conveniences,Building Cleaning,440,
http://statistics.data.gov.uk/id/local-authority/12UE,Huntingdonshire District Council,12/04/2017,12/04/2017,208071,12489088970,605.25,E-ON ENERGY,CR416430,One Leisure Huntingdon,Gas,421,
http://statistics.data.gov.uk/id/local-authority/12UE,Huntingdonshire District Council,18/04/2017,19/04/2017,208262,7588/17/201/PA,600,READING AGRICULTURAL CONSULTANTS,CR404991,Dc Application Processing,Consultants,711,
http://statistics.data.gov.uk/id/local-authority/12UE,Huntingdonshire District Council,27/04/2017,28/04/2017,208821,7014194,600,IDOX,CR481134,Imd Shared Service,Training,130,
http://statistics.data.gov.uk/id/local-authority/12UE,Huntingdonshire District Council,27/04/2017,28/04/2017,208822,R020666,600,PREMIER IT RECRUITMENT LTD,CR454029,Imd Shared Service,Hired Staff,100,
http://statistics.data.gov.uk/id/local-authority/12UE,Huntingdonshire District Council,05/04/2017,12/04/2017,208004,INV0980273,595,BRITISH CYCLING,CR479079,Human Resources,Training,130,
http://statistics.data.gov.uk/id/local-authority/12UE,Huntingdonshire District Council,24/04/2017,26/04/2017,208614,2103315166,579.45,BOOKER CASH AND CARRY,CR027611,Countryside,Catering Materials,559,
http://statistics.data.gov.uk/id/local-authority/12UE,Huntingdonshire District Council,24/04/2017,26/04/2017,208614,2103315166,7.49,BOOKER CASH AND CARRY,CR027611,Countryside,Materials,550,
http://statistics.data.gov.uk/id/local-authority/12UE,Huntingdonshire District Council,26/04/2017,27/04/2017,208777,SIN020852,580,FENLAND LEISURE PRODUCTS LTD,CR478560,Parks & Open Spaces,Playground Equipment,360,
http://statistics.data.gov.uk/id/local-authority/12UE,Huntingdonshire District Council,03/04/2017,04/04/2017,207108,19360,570,ACTIV SECURITY UK LTD,CR409710,One Leisure Sawtry,Building Mtce,303,
http://statistics.data.gov.uk/id/local-authority/12UE,Huntingdonshire District Council,03/04/2017,04/04/2017,207106,64763878,563.14,PHS GROUP LTD,CR032018,One Leisure St Neots,Equipment Hire,507,
http://statistics.data.gov.uk/id/local-authority/12UE,Huntingdonshire District Council,12/04/2017,12/04/2017,207515,79032,559.18,SNACKLINE DIRECT LTD,CR478090,One Leisure Huntingdon,Vending Materials,560,
http://statistics.data.gov.uk/id/local-authority/12UE,Huntingdonshire District Council,03/04/2017,04/04/2017,207102,64708914,555.05,PHS GROUP LTD,CR032018,One Leisure Ramsey,Equipment Hire,507,
http://statistics.data.gov.uk/id/local-authority/12UE,Huntingdonshire District Council,05/04/2017,05/04/2017,207560,104329,550,LAVAT CONSULTING LTD T/A PSTAX,CR480410,Chief Executive & Comt,Consultants,711,
http://statistics.data.gov.uk/id/local-authority/12UE,Huntingdonshire District Council,26/04/2017,27/04/2017,208601,26233,550,LOVE TASTE CO LTD,CR424721,One Leisure St Ives,Equipment,500,
http://statistics.data.gov.uk/id/local-authority/12UE,Huntingdonshire District Council,27/04/2017,28/04/2017,208826,124768,550,IT TALENT SOLUTIONS LTD,CR482676,Imd Shared Service,Hired Staff,100,
http://statistics.data.gov.uk/id/local-authority/12UE,Huntingdonshire District Council,20/04/2017,20/04/2017,208379,902914,547.7,KING BROS,CR411339,Countryside,Catering Materials,559,
http://statistics.data.gov.uk/id/local-authority/12UE,Huntingdonshire District Council,24/04/2017,27/04/2017,208365,EVE18683,544,INSTITUTE OF LICENSING(EVENTS) LIMITED,CR480382,Licences,Conferences,137,
http://statistics.data.gov.uk/id/local-authority/12UE,Huntingdonshire District Council,26/04/2017,27/04/2017,208656,38SI 3845420,541.69,BRENNTAG UK LTD,CR015017,One Leisure St Ives,Chemicals,551,
http://statistics.data.gov.uk/id/local-authority/12UE,Huntingdonshire District Council,03/04/2017,03/04/2017,199932,42477,540,DAL-ROD (CAMRIDGESHIRE),CR413675,E F H And Depots,Sitework,359,
http://statistics.data.gov.uk/id/local-authority/12UE,Huntingdonshire District Council,26/04/2017,27/04/2017,208282,50541,540,TECHNICAL SURFACES LTD,CR031941,One Leisure St Neots,Grounds Mtce Contractors,351,
http://statistics.data.gov.uk/id/local-authority/12UE,Huntingdonshire District Council,28/04/2017,28/04/2017,208853,50712,540,TECHNICAL SURFACES LTD,CR031941,One Leisure St Ives,Grounds Mtce Contractors,351,
http://statistics.data.gov.uk/id/local-authority/12UE,Huntingdonshire District Council,26/04/2017,27/04/2017,208769,3234,534.62,GYM UPHOLSTERY UK,CR424035,One Leisure St Neots,Equipment Maintenance,511,
http://statistics.data.gov.uk/id/local-authority/12UE,Huntingdonshire District Council,05/04/2017,12/04/2017,207516,7080614364,534.07,HONEYWELL NOVAR SYSTEMS,CR406826,One Leisure St Ives,Fire & Security,450,
http://statistics.data.gov.uk/id/local-authority/12UE,Huntingdonshire District Council,12/04/2017,12/04/2017,208067,12489089510,530.74,E-ON ENERGY,CR416430,One Leisure St Ives,Gas,421,
http://statistics.data.gov.uk/id/local-authority/12UE,Huntingdonshire District Council,13/04/2017,13/04/2017,208237,29861,524.17,HYGIENE SOLUTIONS,CR477443,Pathfinder House Site,Building Mtce,303,
http://statistics.data.gov.uk/id/local-authority/12UE,Huntingdonshire District Council,11/04/2017,11/04/2017,610198,FN349784,519,NORTH KESTEVEN DISTRICT COUNCIL,CR480804,Chief Executive & Comt,Corporate Subscriptions,754,
http://statistics.data.gov.uk/id/local-authority/12UE,Huntingdonshire District Council,26/04/2017,27/04/2017,208447,40793,508,CLANPRESS KING'S LYNN LTD,CR413516,One Leisure St Ives,Advertising/Promoting Services,255,
http://statistics.data.gov.uk/id/local-authority/12UE,Huntingdonshire District Council,07/04/2017,07/04/2017,207887,121573804,503.42,SWALEC,CR407130,Parks & Open Spaces,Electricity,420,
http://statistics.data.gov.uk/id/local-authority/12UE,Huntingdonshire District Council,05/04/2017,12/04/2017,207652,196267,100,LEAD FORENSICS,CR423143,One Leisure Huntingdon,Advertising/Promoting Services,255,
http://statistics.data.gov.uk/id/local-authority/12UE,Huntingdonshire District Council,05/04/2017,12/04/2017,207652,196267,50,LEAD FORENSICS,CR423143,One Leisure Ramsey,Advertising/Promoting Services,255,
http://statistics.data.gov.uk/id/local-authority/12UE,Huntingdonshire District Council,05/04/2017,12/04/2017,207652,196267,101,LEAD FORENSICS,CR423143,One Leisure Corporate Mgt,Advertising/Promoting Services,255,
http://statistics.data.gov.uk/id/local-authority/12UE,Huntingdonshire District Council,05/04/2017,12/04/2017,207652,196267,50,LEAD FORENSICS,CR423143,One Leisure Sawtry,Advertising/Promoting Services,255,
http://statistics.data.gov.uk/id/local-authority/12UE,Huntingdonshire District Council,05/04/2017,12/04/2017,207652,196267,100,LEAD FORENSICS,CR423143,One Leisure St Ives,Advertising/Promoting Services,255,
http://statistics.data.gov.uk/id/local-authority/12UE,Huntingdonshire District Council,05/04/2017,12/04/2017,207652,196267,100,LEAD FORENSICS,CR423143,One Leisure St Neots,Advertising/Promoting Services,255,
http://statistics.data.gov.uk/id/local-authority/12UE,Huntingdonshire District Council,05/04/2017,12/04/2017,207937,U77140,500,AFI-UPLIFT LIMITED,CR424703,Human Resources,Training,130,
http://statistics.data.gov.uk/id/local-authority/12UE,Huntingdonshire District Council,24/04/2017,27/04/2017,208738,273,490,THE CCTV TRAINING ACADEMY,CR455987,Cctv Shared Service,Training,130,
http://statistics.data.gov.uk/id/local-authority/12UE,Huntingdonshire District Council,11/04/2017,11/04/2017,208020,971936,489.03,MORGAN HUNT PUBLIC UK LTD,CR415693,Housing  Benefits Admin,Hired Staff,100,
http://statistics.data.gov.uk/id/local-authority/12UE,Huntingdonshire District Council,24/04/2017,26/04/2017,208715,60227296,484.86,AEBI SCHMIDT,CR025706,Street Cleaning,Vehicle Parts & Fittings,625,
http://statistics.data.gov.uk/id/local-authority/12UE,Huntingdonshire District Council,26/04/2017,27/04/2017,208430,PSI182192,481.38,REESINK TURFCARE UK LTD,CR098282,Grounds Maintenance,Vehicle Parts & Fittings,625,
http://statistics.data.gov.uk/id/local-authority/12UE,Huntingdonshire District Council,19/04/2017,20/04/2017,208324,922 7-08,480.5,COMPLETE BOWLING SERVICES LTD,CR424631,One Leisure St Ives,Building Mtce,303,
http://statistics.data.gov.uk/id/local-authority/12UE,Huntingdonshire District Council,03/04/2017,04/04/2017,207029,213155,105.6,GB GROUP PLC,CR455456,One Leisure Huntingdon,Software,206,
http://statistics.data.gov.uk/id/local-authority/12UE,Huntingdonshire District Council,03/04/2017,04/04/2017,207029,213155,57.6,GB GROUP PLC,CR455456,One Leisure Ramsey,Software,206,
http://statistics.data.gov.uk/id/local-authority/12UE,Huntingdonshire District Council,03/04/2017,04/04/2017,207029,213155,48,GB GROUP PLC,CR455456,One Leisure Corporate Mgt,Software,206,
http://statistics.data.gov.uk/id/local-authority/12UE,Huntingdonshire District Council,03/04/2017,04/04/2017,207029,213155,57.6,GB GROUP PLC,CR455456,One Leisure Sawtry,Software,206,
http://statistics.data.gov.uk/id/local-authority/12UE,Huntingdonshire District Council,03/04/2017,04/04/2017,207029,213155,105.6,GB GROUP PLC,CR455456,One Leisure St Ives,Software,206,
http://statistics.data.gov.uk/id/local-authority/12UE,Huntingdonshire District Council,03/04/2017,04/04/2017,207029,213155,105.6,GB GROUP PLC,CR455456,One Leisure St Neots,Software,206,
http://statistics.data.gov.uk/id/local-authority/12UE,Huntingdonshire District Council,26/04/2017,26/04/2017,208762,34822,479.5,MEYER SCOTT RECRUITMENT LIMITED,CR422369,Financial Services Mus,Hired Staff,100,
http://statistics.data.gov.uk/id/local-authority/12UE,Huntingdonshire District Council,05/04/2017,12/04/2017,207390,30570,475,BRIDGE FIBRE LIMITED,CR424041,One Leisure Corporate Mgt,Building Mtce,303,
http://statistics.data.gov.uk/id/local-authority/12UE,Huntingdonshire District Council,06/04/2017,06/04/2017,207717,970909,473.55,MORGAN HUNT PUBLIC UK LTD,CR415693,Housing  Benefits Admin,Hired Staff,100,
http://statistics.data.gov.uk/id/local-authority/12UE,Huntingdonshire District Council,12/04/2017,12/04/2017,208033,REDACTED,472.95,LUMINUS HOMES,CR401276,Homelessness Management,Incentive Payment,816,
http://statistics.data.gov.uk/id/local-authority/12UE,Huntingdonshire District Council,20/04/2017,20/04/2017,208395,901483,462.47,KING BROS,CR411339,Countryside,Catering Materials,559,
http://statistics.data.gov.uk/id/local-authority/12UE,Huntingdonshire District Council,20/04/2017,20/04/2017,208395,901483,9.36,KING BROS,CR411339,Countryside,Cleaning Materials,443,
http://statistics.data.gov.uk/id/local-authority/12UE,Huntingdonshire District Council,11/04/2017,12/04/2017,208026,70899,470,BRITANNIA FIRE & SECURITY LTD,CR410090,Pathfinder House Site,Building Mtce,303,
http://statistics.data.gov.uk/id/local-authority/12UE,Huntingdonshire District Council,20/04/2017,20/04/2017,208391,272858,462.13,FIRST RECRUITMENT GROUP LTD,CR424012,Financial Services Mus,Hired Staff,100,
http://statistics.data.gov.uk/id/local-authority/12UE,Huntingdonshire District Council,19/04/2017,20/04/2017,208214,S3092857,458,FIRST IN SERVICE LTD,CR422285,One Leisure Huntingdon,Building Mtce,303,
http://statistics.data.gov.uk/id/local-authority/12UE,Huntingdonshire District Council,20/04/2017,20/04/2017,208376,850450,455.58,PILGRIM FOODSERVICE LTD,CR455695,Countryside,Catering Materials,559,
http://statistics.data.gov.uk/id/local-authority/12UE,Huntingdonshire District Council,26/04/2017,27/04/2017,208411,18287,454,WARBOYS SERVICES LTD,CR000841,One Leisure Huntingdon,Building Mtce,303,
http://statistics.data.gov.uk/id/local-authority/12UE,Huntingdonshire District Council,12/04/2017,12/04/2017,207994,844266,453.9,J P LENNARD LTD,CR028595,One Leisure St Ives,Equipment,500,
http://statistics.data.gov.uk/id/local-authority/12UE,Huntingdonshire District Council,07/04/2017,11/04/2017,207896,54213,450,MELSECURE INTERNATIONAL,CR422888,Cctv Shared Service,Equipment Maintenance,511,
http://statistics.data.gov.uk/id/local-authority/12UE,Huntingdonshire District Council,12/04/2017,12/04/2017,610417,04-Apr-17,450,DVLA,CR033149,Domestic Refuse,Vehicle Licence,609,
http://statistics.data.gov.uk/id/local-authority/12UE,Huntingdonshire District Council,19/04/2017,19/04/2017,610497,KU09 CMV,450,DVLA,CR033149,Domestic Refuse,Vehicle Licence,609,
http://statistics.data.gov.uk/id/local-authority/12UE,Huntingdonshire District Council,24/04/2017,24/04/2017,610678,KU09 CMV RFL,450,DVLA,CR033149,Domestic Refuse,Vehicle Licence,609,
http://statistics.data.gov.uk/id/local-authority/12UE,Huntingdonshire District Council,12/04/2017,12/04/2017,610226,REDACTED,442.2,REDACTED,CR118529,Homelessness Management,Incentive Payment,816,
http://statistics.data.gov.uk/id/local-authority/12UE,Huntingdonshire District Council,12/04/2017,12/04/2017,208011,384/727,437.5,JAZ YORKS LTD,CR160753,Homelessness Management,Bed & Breakfast Payment,818,
http://statistics.data.gov.uk/id/local-authority/12UE,Huntingdonshire District Council,27/04/2017,27/04/2017,208713,384/731,437.5,JAZ YORKS LTD,CR160753,Homelessness Management,Bed & Breakfast Payment,818,
http://statistics.data.gov.uk/id/local-authority/12UE,Huntingdonshire District Council,03/04/2017,03/04/2017,207453,JC5106/29081,433.33,J BREHENY CIVIL ENGINEERING LTD,CR000314,Off Street Parking,Sitework,359,
http://statistics.data.gov.uk/id/local-authority/12UE,Huntingdonshire District Council,26/04/2017,27/04/2017,208661,61781,431.02,MASKEARAID LTD,CR033423,One Leisure St Neots,Cleaning Materials,443,
http://statistics.data.gov.uk/id/local-authority/12UE,Huntingdonshire District Council,24/04/2017,26/04/2017,208418,DE11030594,37.57,DENNIS EAGLE LTD,CR000200,Recycling,Vehicle Parts & Fittings,625,
http://statistics.data.gov.uk/id/local-authority/12UE,Huntingdonshire District Council,24/04/2017,26/04/2017,208418,DE11030594,180.94,DENNIS EAGLE LTD,CR000200,Domestic Refuse,Vehicle Parts & Fittings,625,
http://statistics.data.gov.uk/id/local-authority/12UE,Huntingdonshire District Council,24/04/2017,26/04/2017,208418,DE11030594,211.89,DENNIS EAGLE LTD,CR000200,Recycling,Vehicle Parts & Fittings,625,
http://statistics.data.gov.uk/id/local-authority/12UE,Huntingdonshire District Council,26/04/2017,27/04/2017,208662,INV078970,341.55,SLUSH PUPPIE LTD,CR455958,One Leisure St Ives,Catering Materials,559,
http://statistics.data.gov.uk/id/local-authority/12UE,Huntingdonshire District Council,26/04/2017,27/04/2017,208662,INV078970,87.51,SLUSH PUPPIE LTD,CR455958,One Leisure St Ives,Materials,550,
http://statistics.data.gov.uk/id/local-authority/12UE,Huntingdonshire District Council,12/04/2017,12/04/2017,206772,218107,425,LARAC,CR406133,Domestic Refuse,Professional Subscriptions,755,
http://statistics.data.gov.uk/id/local-authority/12UE,Huntingdonshire District Council,11/04/2017,12/04/2017,208051,4000004595,423.38,1ST CHOICE RECRUITMENT,CR416849,Environmental Management,Hired Staff,100,
http://statistics.data.gov.uk/id/local-authority/12UE,Huntingdonshire District Council,26/04/2017,27/04/2017,208782,52885,413.96,PLOT IT,CR455069,Document Centre,Equipment Maintenance,511,
http://statistics.data.gov.uk/id/local-authority/12UE,Huntingdonshire District Council,26/04/2017,27/04/2017,208782,52885,6.95,PLOT IT,CR455069,Document Centre,Postage,231,
http://statistics.data.gov.uk/id/local-authority/12UE,Huntingdonshire District Council,03/04/2017,04/04/2017,207028,INV-0059,104.17,WAMO SPORTS LTD,CR423559,One Leisure Huntingdon,Licences,730,
http://statistics.data.gov.uk/id/local-authority/12UE,Huntingdonshire District Council,03/04/2017,04/04/2017,207028,INV-0059,52.08,WAMO SPORTS LTD,CR423559,One Leisure Ramsey,Licences,730,
http://statistics.data.gov.uk/id/local-authority/12UE,Huntingdonshire District Council,03/04/2017,04/04/2017,207028,INV-0059,52.08,WAMO SPORTS LTD,CR423559,One Leisure Sawtry,Licences,730,
http://statistics.data.gov.uk/id/local-authority/12UE,Huntingdonshire District Council,03/04/2017,04/04/2017,207028,INV-0059,104.17,WAMO SPORTS LTD,CR423559,One Leisure St Ives,Licences,730,
http://statistics.data.gov.uk/id/local-authority/12UE,Huntingdonshire District Council,03/04/2017,04/04/2017,207028,INV-0059,104.17,WAMO SPORTS LTD,CR423559,One Leisure St Neots,Licences,730,
http://statistics.data.gov.uk/id/local-authority/12UE,Huntingdonshire District Council,27/04/2017,28/04/2017,208818,105894/109732,412.25,GALTEC SOLUTIONS LTD,CR423396,Financial Services Mus,Other I T Hardware,203,
http://statistics.data.gov.uk/id/local-authority/12UE,Huntingdonshire District Council,26/04/2017,27/04/2017,208677,82704705,411.21,ARCHANT COMMUNITY MEDIA LTD,CR452143,One Leisure St Ives,Advertising/Promoting Services,255,
http://statistics.data.gov.uk/id/local-authority/12UE,Huntingdonshire District Council,28/04/2017,28/04/2017,209037,82707926,411.21,ARCHANT HERTS & CAMBS,CR415764,One Leisure St Ives,Advertising/Promoting Services,255,
http://statistics.data.gov.uk/id/local-authority/12UE,Huntingdonshire District Council,24/04/2017,27/04/2017,208367,1067,410.94,STM ENVIRONMENTALCONSULTANTS LTD,CR478181,Contaminated Land,Software,206,
http://statistics.data.gov.uk/id/local-authority/12UE,Huntingdonshire District Council,27/04/2017,27/04/2017,610887,DCN-1718-086,410,DISTRICT COUNCILS' NETWORK,CR424733,Chief Executive & Comt,Corporate Subscriptions,754,
http://statistics.data.gov.uk/id/local-authority/12UE,Huntingdonshire District Council,12/04/2017,12/04/2017,208069,12489089940,408.93,E-ON ENERGY,CR416430,E F H And Depots,Gas,421,
http://statistics.data.gov.uk/id/local-authority/12UE,Huntingdonshire District Council,24/04/2017,26/04/2017,203640,58163,402.5,BEEBYS LIMITED,CR415822,Bus Stations,Building Cleaning,440,
http://statistics.data.gov.uk/id/local-authority/12UE,Huntingdonshire District Council,11/04/2017,12/04/2017,208049,58161,402.5,BEEBYS LIMITED,CR415822,Bus Stations,Building Cleaning,440,
http://statistics.data.gov.uk/id/local-authority/12UE,Huntingdonshire District Council,24/04/2017,26/04/2017,208610,559687,402.49,ECOCLEEN SERVICES LIMITED,CR406985,Countryside,Building Cleaning,440,
http://statistics.data.gov.uk/id/local-authority/12UE,Huntingdonshire District Council,27/04/2017,27/04/2017,208799,REDACTED,401.5,GATEHOUSE ESTATES,CR479161,Homelessness Management,Incentive Payment,816,
http://statistics.data.gov.uk/id/local-authority/12UE,Huntingdonshire District Council,11/04/2017,11/04/2017,207929,34795,400.61,MEYER SCOTT RECRUITMENT LIMITED,CR422369,Financial Services Mus,Hired Staff,100,
http://statistics.data.gov.uk/id/local-authority/12UE,Huntingdonshire District Council,05/04/2017,12/04/2017,207570,124205,400,TWOFOLD CONSULTING,CR453929,Document Centre,Equipment Maintenance,511,
http://statistics.data.gov.uk/id/local-authority/12UE,Huntingdonshire District Council,28/04/2017,28/04/2017,209035,100018,400,EAST OF ENGLAND LGA,CR422620,Chief Executive & Comt,Professional Subscriptions,755,
http://statistics.data.gov.uk/id/local-authority/12UE,Huntingdonshire District Council,26/04/2017,27/04/2017,208750,79272,397.16,SNACKLINE DIRECT LTD,CR478090,One Leisure St Neots,Vending Materials,560,
http://statistics.data.gov.uk/id/local-authority/12UE,Huntingdonshire District Council,20/04/2017,20/04/2017,208390,901984,395.77,KING BROS,CR411339,Countryside,Catering Materials,559,
http://statistics.data.gov.uk/id/local-authority/12UE,Huntingdonshire District Council,24/04/2017,26/04/2017,208415,2103210404,380.52,BOOKER CASH AND CARRY,CR027611,Countryside,Catering Materials,559,
http://statistics.data.gov.uk/id/local-authority/12UE,Huntingdonshire District Council,24/04/2017,26/04/2017,208415,2103210404,13.48,BOOKER CASH AND CARRY,CR027611,Countryside,Materials,550,
http://statistics.data.gov.uk/id/local-authority/12UE,Huntingdonshire District Council,25/04/2017,27/04/2017,208846,203199,393.7,CAMBRIDGE VENDING,CR424128,E F H And Depots,Service Charges,412,
http://statistics.data.gov.uk/id/local-authority/12UE,Huntingdonshire District Council,12/04/2017,12/04/2017,207513,10412639,389.02,LUCOZADE RIBENA SUNTORY LTD,CR422660,One Leisure Huntingdon,Vending Materials,560,
http://statistics.data.gov.uk/id/local-authority/12UE,Huntingdonshire District Council,18/04/2017,19/04/2017,208263,118800,385,GOVNET COMMUNICATIONS,CR405771,Human Resources,Training,130,
http://statistics.data.gov.uk/id/local-authority/12UE,Huntingdonshire District Council,05/04/2017,12/04/2017,207721,758241,381.44,BEN BURGESS & COMPANY,CR453903,One Leisure St Ives,Vehicle Maintenance External,619,
http://statistics.data.gov.uk/id/local-authority/12UE,Huntingdonshire District Council,20/04/2017,20/04/2017,208375,64803167,379.02,DATA SOLUTIONS T/A RESTORE DATASHRED,CR480152,E F H And Depots,Shredding,773,
http://statistics.data.gov.uk/id/local-authority/12UE,Huntingdonshire District Council,26/04/2017,27/04/2017,208446,OLH 55,375,LUI THE PLUMBER,CR422379,One Leisure St Ives,Building Mtce,303,
http://statistics.data.gov.uk/id/local-authority/12UE,Huntingdonshire District Council,13/04/2017,13/04/2017,208223,272303,368.46,FIRST RECRUITMENT GROUP LTD,CR424012,Financial Services Mus,Hired Staff,100,
http://statistics.data.gov.uk/id/local-authority/12UE,Huntingdonshire District Council,26/04/2017,26/04/2017,208763,320813,368.46,FIRST RECRUITMENT GROUP LTD,CR424012,Financial Services Mus,Hired Staff,100,
http://statistics.data.gov.uk/id/local-authority/12UE,Huntingdonshire District Council,20/04/2017,20/04/2017,208393,902459,337.78,KING BROS,CR411339,Countryside,Catering Materials,559,
http://statistics.data.gov.uk/id/local-authority/12UE,Huntingdonshire District Council,20/04/2017,20/04/2017,208393,902459,27.64,KING BROS,CR411339,Countryside,Cleaning Materials,443,
http://statistics.data.gov.uk/id/local-authority/12UE,Huntingdonshire District Council,24/04/2017,26/04/2017,208414,700030,365,INTACEPT MANAGEMENT LIMITED,CR409084,Countryside,Fire & Security,450,
http://statistics.data.gov.uk/id/local-authority/12UE,Huntingdonshire District Council,26/04/2017,27/04/2017,208347,82701429,361.45,ARCHANT COMMUNITY MEDIA LTD,CR452143,One Leisure St Ives,Advertising/Promoting Services,255,
http://statistics.data.gov.uk/id/local-authority/12UE,Huntingdonshire District Council,21/04/2017,21/04/2017,610503,REDACTED,360,WILSON & CO HOMES,CR424719,Homelessness Management,Incentive Payment,816,
http://statistics.data.gov.uk/id/local-authority/12UE,Huntingdonshire District Council,26/04/2017,27/04/2017,208444,2103315278,12.97,BOOKER CASH AND CARRY,CR027611,One Leisure St Ives,Bar Provisions,558,
http://statistics.data.gov.uk/id/local-authority/12UE,Huntingdonshire District Council,26/04/2017,27/04/2017,208444,2103315278,310.49,BOOKER CASH AND CARRY,CR027611,One Leisure St Ives,Catering Materials,559,
http://statistics.data.gov.uk/id/local-authority/12UE,Huntingdonshire District Council,26/04/2017,27/04/2017,208444,2103315278,7.25,BOOKER CASH AND CARRY,CR027611,One Leisure St Ives,Confectionery,572,
http://statistics.data.gov.uk/id/local-authority/12UE,Huntingdonshire District Council,26/04/2017,27/04/2017,208444,2103315278,25.28,BOOKER CASH AND CARRY,CR027611,One Leisure St Ives,Materials,550,
http://statistics.data.gov.uk/id/local-authority/12UE,Huntingdonshire District Council,24/04/2017,26/04/2017,208613,2103314527,355.21,BOOKER CASH AND CARRY,CR027611,Countryside,Catering Materials,559,
http://statistics.data.gov.uk/id/local-authority/12UE,Huntingdonshire District Council,03/04/2017,03/04/2017,207455,JC/5106/29071,355,J BREHENY CIVIL ENGINEERING LTD,CR000314,Emergency Planning,Other Services,799,
http://statistics.data.gov.uk/id/local-authority/12UE,Huntingdonshire District Council,24/04/2017,26/04/2017,208719,112286,175,BARTON PETROLEUM,CR409205,Domestic Refuse,Vehicle Oil & Lubricants,626,
http://statistics.data.gov.uk/id/local-authority/12UE,Huntingdonshire District Council,24/04/2017,26/04/2017,208719,112286,175,BARTON PETROLEUM,CR409205,Recycling,Vehicle Oil & Lubricants,626,
http://statistics.data.gov.uk/id/local-authority/12UE,Huntingdonshire District Council,24/04/2017,26/04/2017,208620,2735081I,349.9,A C COMMERCIALS,CR000141,Fleet Management,Equipment,500,
http://statistics.data.gov.uk/id/local-authority/12UE,Huntingdonshire District Council,21/04/2017,21/04/2017,208603,973014,348.35,MORGAN HUNT PUBLIC UK LTD,CR415693,Housing  Benefits Admin,Hired Staff,100,
http://statistics.data.gov.uk/id/local-authority/12UE,Huntingdonshire District Council,26/04/2017,26/04/2017,208766,1007475248,346.23,HAYS,CR423917,Property Development And Mgt,Hired Staff,100,
http://statistics.data.gov.uk/id/local-authority/12UE,Huntingdonshire District Council,20/04/2017,20/04/2017,208381,903368,345.51,KING BROS,CR411339,Countryside,Catering Materials,559,
http://statistics.data.gov.uk/id/local-authority/12UE,Huntingdonshire District Council,24/04/2017,26/04/2017,208629,559809,343.53,ECOCLEEN SERVICES LIMITED,CR406985,Off Street Parking,Building Cleaning,440,
http://statistics.data.gov.uk/id/local-authority/12UE,Huntingdonshire District Council,12/04/2017,12/04/2017,207972,11458902300,343.41,E-ON ENERGY,CR416430,Bus Shelters,Electricity,420,
http://statistics.data.gov.uk/id/local-authority/12UE,Huntingdonshire District Council,19/04/2017,20/04/2017,208305,308812,12.46,SOUTH LINCS FOOD SERVICE,CR033415,One Leisure St Ives,Bar Provisions,558,
http://statistics.data.gov.uk/id/local-authority/12UE,Huntingdonshire District Council,19/04/2017,20/04/2017,208305,308812,224.81,SOUTH LINCS FOOD SERVICE,CR033415,One Leisure St Ives,Catering Materials,559,
http://statistics.data.gov.uk/id/local-authority/12UE,Huntingdonshire District Council,19/04/2017,20/04/2017,208305,308812,24.07,SOUTH LINCS FOOD SERVICE,CR033415,One Leisure St Ives,Confectionery,572,
http://statistics.data.gov.uk/id/local-authority/12UE,Huntingdonshire District Council,19/04/2017,20/04/2017,208305,308812,81.25,SOUTH LINCS FOOD SERVICE,CR033415,One Leisure St Ives,Materials,550,
http://statistics.data.gov.uk/id/local-authority/12UE,Huntingdonshire District Council,27/04/2017,27/04/2017,208847,INV079886,341.55,SLUSH PUPPIE LTD,CR455958,One Leisure St Ives,Catering Materials,559,
http://statistics.data.gov.uk/id/local-authority/12UE,Huntingdonshire District Council,24/04/2017,26/04/2017,208635,1704/47871,340,GULLIVERS TRUCK HIRE LTD,CR477663,Domestic Refuse,Vehicle Hire,607,
http://statistics.data.gov.uk/id/local-authority/12UE,Huntingdonshire District Council,24/04/2017,26/04/2017,208638,1704/49569,340,GULLIVERS TRUCK HIRE LTD,CR477663,Domestic Refuse,Vehicle Hire,607,
http://statistics.data.gov.uk/id/local-authority/12UE,Huntingdonshire District Council,24/04/2017,26/04/2017,208641,1704/50951,340,GULLIVERS TRUCK HIRE LTD,CR477663,Domestic Refuse,Vehicle Hire,607,
http://statistics.data.gov.uk/id/local-authority/12UE,Huntingdonshire District Council,13/04/2017,20/04/2017,208242,272436,336.69,FIRST RECRUITMENT GROUP LTD,CR424012,Licences,Hired Staff,100,
http://statistics.data.gov.uk/id/local-authority/12UE,Huntingdonshire District Council,26/04/2017,27/04/2017,207970,37959,336,TRINITY ENGINEERING & COMPONENT SUPPLIES LTD,CR455479,Fleet Management,Materials,550,
http://statistics.data.gov.uk/id/local-authority/12UE,Huntingdonshire District Council,26/04/2017,27/04/2017,208419,I162825,330.72,OAKHAM ALES,CR422253,One Leisure St Ives,Bar Provisions,558,
http://statistics.data.gov.uk/id/local-authority/12UE,Huntingdonshire District Council,12/04/2017,12/04/2017,208008,384/730,320.84,JAZ YORKS LTD,CR160753,Homelessness Management,Bed & Breakfast Payment,818,
http://statistics.data.gov.uk/id/local-authority/12UE,Huntingdonshire District Council,27/04/2017,27/04/2017,208711,384/733,320.84,JAZ YORKS LTD,CR160753,Homelessness Management,Bed & Breakfast Payment,818,
http://statistics.data.gov.uk/id/local-authority/12UE,Huntingdonshire District Council,27/04/2017,27/04/2017,208712,384/734,320.84,JAZ YORKS LTD,CR160753,Homelessness Management,Bed & Breakfast Payment,818,
http://statistics.data.gov.uk/id/local-authority/12UE,Huntingdonshire District Council,24/04/2017,26/04/2017,208413,SN2621240,318,BERENDSEN,CR478298,Fleet Management,Materials,550,
http://statistics.data.gov.uk/id/local-authority/12UE,Huntingdonshire District Council,19/04/2017,20/04/2017,208056,OLSN0101,315.9,NJL PROPERTY SOLUTIONS,CR423380,One Leisure St Neots,Building Mtce,303,
http://statistics.data.gov.uk/id/local-authority/12UE,Huntingdonshire District Council,24/04/2017,26/04/2017,208618,6902,310.7,CAMBRIDGE DOOR SERVICES,CR415341,E F H And Depots,Building Mtce,303,
http://statistics.data.gov.uk/id/local-authority/12UE,Huntingdonshire District Council,27/04/2017,27/04/2017,208689,79787,310.2,SNACKLINE DIRECT LTD,CR478090,One Leisure Ramsey,Vending Materials,560,
http://statistics.data.gov.uk/id/local-authority/12UE,Huntingdonshire District Council,11/04/2017,12/04/2017,207953,104449,310.08,ARTHUR IBBETT LTD,CR000430,Grounds Maintenance,Equipment,500,
http://statistics.data.gov.uk/id/local-authority/12UE,Huntingdonshire District Council,27/04/2017,27/04/2017,208680,659050,261.36,LACONS,CR422174,One Leisure St Ives,Bar Provisions,558,
http://statistics.data.gov.uk/id/local-authority/12UE,Huntingdonshire District Council,27/04/2017,27/04/2017,208680,659050,48,LACONS,CR422174,One Leisure St Ives,Gas Cylinders (Incl. Bars),567,
http://statistics.data.gov.uk/id/local-authority/12UE,Huntingdonshire District Council,12/04/2017,12/04/2017,208073,12489088540,308.56,E-ON ENERGY,CR416430,One Leisure St Neots,Gas,421,
http://statistics.data.gov.uk/id/local-authority/12UE,Huntingdonshire District Council,26/04/2017,26/04/2017,208761,34856,308.25,MEYER SCOTT RECRUITMENT LIMITED,CR422369,Financial Services Mus,Hired Staff,100,
http://statistics.data.gov.uk/id/local-authority/12UE,Huntingdonshire District Council,26/04/2017,27/04/2017,208443,4404298,182.26,ESPO,CR006566,One Leisure St Ives,Cleaning Materials,443,
http://statistics.data.gov.uk/id/local-authority/12UE,Huntingdonshire District Council,26/04/2017,27/04/2017,208443,4404298,125.36,ESPO,CR006566,One Leisure St Ives,Stationery,225,
http://statistics.data.gov.uk/id/local-authority/12UE,Huntingdonshire District Council,06/04/2017,07/04/2017,207598,OP/1796386,304.04,PHOENIX SOFTWARE LTD,CR031918,Imd Shared Service,Software,206,
http://statistics.data.gov.uk/id/local-authority/12UE,Huntingdonshire District Council,11/04/2017,12/04/2017,207931,R020406,300,PREMIER IT RECRUITMENT LTD,CR454029,Imd Shared Service,Hired Staff,100,
http://statistics.data.gov.uk/id/local-authority/12UE,Huntingdonshire District Council,26/04/2017,27/04/2017,208594,4145,300,ABBEY STOCKTAKING SERVICES,CR405345,One Leisure St Ives,Stock Control,758,
http://statistics.data.gov.uk/id/local-authority/12UE,Huntingdonshire District Council,24/04/2017,26/04/2017,208624,DE11032290,294.48,DENNIS EAGLE LTD,CR000200,Domestic Refuse,Vehicle Parts & Fittings,625,
http://statistics.data.gov.uk/id/local-authority/12UE,Huntingdonshire District Council,24/04/2017,26/04/2017,208608,11398241360,286.04,E-ON ENERGY,CR416430,Off Street Parking,Electricity,420,
http://statistics.data.gov.uk/id/local-authority/12UE,Huntingdonshire District Council,26/04/2017,27/04/2017,208793,862,285.5,MIRAMAR ENGINEERING LTD,CR424694,Leisure Centres Capital,Building Mtce,303,
http://statistics.data.gov.uk/id/local-authority/12UE,Huntingdonshire District Council,11/04/2017,12/04/2017,207956,SIN0630289,285.39,HOWSAFE LTD,CR000409,Domestic Refuse,Protective Clothing & Uniforms,163,
http://statistics.data.gov.uk/id/local-authority/12UE,Huntingdonshire District Council,18/04/2017,21/04/2017,208437,29413,285,THE CREATIVE COMPANY,CR407087,Markets,Advertising/Promoting Services,255,
http://statistics.data.gov.uk/id/local-authority/12UE,Huntingdonshire District Council,24/04/2017,26/04/2017,208621,43815,285,DAL-ROD (CAMRIDGESHIRE),CR413675,Pathfinder House Site,Building Mtce,303,
http://statistics.data.gov.uk/id/local-authority/12UE,Huntingdonshire District Council,19/04/2017,20/04/2017,208302,293844,181.86,WESTMINSTER FOODSERVICE,CR455156,One Leisure St Ives,Bar Provisions,558,
http://statistics.data.gov.uk/id/local-authority/12UE,Huntingdonshire District Council,19/04/2017,20/04/2017,208302,293844,102.55,WESTMINSTER FOODSERVICE,CR455156,One Leisure St Ives,Catering Materials,559,
http://statistics.data.gov.uk/id/local-authority/12UE,Huntingdonshire District Council,27/04/2017,27/04/2017,208708,62929,282,GASWISE,CR423458,Improvement Grants,Shared Service Savings,798,
http://statistics.data.gov.uk/id/local-authority/12UE,Huntingdonshire District Council,19/04/2017,20/04/2017,208311,303835,22,SOUTH LINCS FOOD SERVICE,CR033415,One Leisure St Ives,Bar Provisions,558,
http://statistics.data.gov.uk/id/local-authority/12UE,Huntingdonshire District Council,19/04/2017,20/04/2017,208311,303835,250.13,SOUTH LINCS FOOD SERVICE,CR033415,One Leisure St Ives,Catering Materials,559,
http://statistics.data.gov.uk/id/local-authority/12UE,Huntingdonshire District Council,19/04/2017,20/04/2017,208311,303835,9.76,SOUTH LINCS FOOD SERVICE,CR033415,One Leisure St Ives,Confectionery,572,
http://statistics.data.gov.uk/id/local-authority/12UE,Huntingdonshire District Council,07/04/2017,07/04/2017,206392,941403266,281.78,SWALEC,CR407130,Countryside,Electricity,420,
http://statistics.data.gov.uk/id/local-authority/12UE,Huntingdonshire District Council,12/04/2017,12/04/2017,207998,9764,280,ROGER WILSON ELECTRONICS,CR028041,One Leisure St Ives,Building Mtce,303,
http://statistics.data.gov.uk/id/local-authority/12UE,Huntingdonshire District Council,19/04/2017,20/04/2017,208215,S3092937,278.8,FIRST IN SERVICE LTD,CR422285,One Leisure Huntingdon,Building Mtce,303,
http://statistics.data.gov.uk/id/local-authority/12UE,Huntingdonshire District Council,06/04/2017,07/04/2017,207621,OP/1796385,278.04,PHOENIX SOFTWARE LTD,CR031918,Environmental Management,Software,206,
http://statistics.data.gov.uk/id/local-authority/12UE,Huntingdonshire District Council,20/04/2017,20/04/2017,208075,86686,277,FRANK RATCLIFFE & SON,CR007546,Domestic Refuse,Vehicle Parts & Fittings,625,
http://statistics.data.gov.uk/id/local-authority/12UE,Huntingdonshire District Council,19/04/2017,20/04/2017,208239,INV072173,273.24,SLUSH PUPPIE LTD,CR455958,One Leisure St Neots,Catering Materials,559,
http://statistics.data.gov.uk/id/local-authority/12UE,Huntingdonshire District Council,26/04/2017,27/04/2017,208355,61719,272,MASKEARAID LTD,CR033423,One Leisure Huntingdon,Stationery,225,
http://statistics.data.gov.uk/id/local-authority/12UE,Huntingdonshire District Council,12/04/2017,12/04/2017,208010,384/728,270.84,JAZ YORKS LTD,CR160753,Homelessness Management,Bed & Breakfast Payment,818,
http://statistics.data.gov.uk/id/local-authority/12UE,Huntingdonshire District Council,19/04/2017,20/04/2017,208279,50568,270,TECHNICAL SURFACES LTD,CR031941,One Leisure Ramsey,Grounds Mtce Contractors,351,
http://statistics.data.gov.uk/id/local-authority/12UE,Huntingdonshire District Council,19/04/2017,20/04/2017,208280,50543,270,TECHNICAL SURFACES LTD,CR031941,One Leisure Sawtry,Grounds Mtce Contractors,351,
http://statistics.data.gov.uk/id/local-authority/12UE,Huntingdonshire District Council,26/04/2017,27/04/2017,208281,50542,270,TECHNICAL SURFACES LTD,CR031941,One Leisure Huntingdon,Grounds Mtce Contractors,351,
http://statistics.data.gov.uk/id/local-authority/12UE,Huntingdonshire District Council,19/04/2017,20/04/2017,208220,9769,266,ROGER WILSON ELECTRONICS,CR028041,One Leisure St Ives,Building Mtce,303,
http://statistics.data.gov.uk/id/local-authority/12UE,Huntingdonshire District Council,12/04/2017,12/04/2017,208009,384/729,262.5,JAZ YORKS LTD,CR160753,Homelessness Management,Bed & Breakfast Payment,818,
http://statistics.data.gov.uk/id/local-authority/12UE,Huntingdonshire District Council,27/04/2017,27/04/2017,208709,384/732,262.5,JAZ YORKS LTD,CR160753,Homelessness Management,Bed & Breakfast Payment,818,
http://statistics.data.gov.uk/id/local-authority/12UE,Huntingdonshire District Council,05/04/2017,12/04/2017,207714,9763,60,ROGER WILSON ELECTRONICS,CR028041,One Leisure St Ives,Building Mtce,303,
http://statistics.data.gov.uk/id/local-authority/12UE,Huntingdonshire District Council,05/04/2017,12/04/2017,207714,9763,202.08,ROGER WILSON ELECTRONICS,CR028041,One Leisure St Ives,Materials,550,
http://statistics.data.gov.uk/id/local-authority/12UE,Huntingdonshire District Council,05/04/2017,12/04/2017,207981,82699117,38.72,ARCHANT HERTS & CAMBS,CR415764,One Leisure Huntingdon,Advertising/Promoting Services,255,
http://statistics.data.gov.uk/id/local-authority/12UE,Huntingdonshire District Council,05/04/2017,12/04/2017,207981,82699117,19.36,ARCHANT HERTS & CAMBS,CR415764,One Leisure Ramsey,Advertising/Promoting Services,255,
http://statistics.data.gov.uk/id/local-authority/12UE,Huntingdonshire District Council,05/04/2017,12/04/2017,207981,82699117,19.36,ARCHANT HERTS & CAMBS,CR415764,One Leisure Sawtry,Advertising/Promoting Services,255,
http://statistics.data.gov.uk/id/local-authority/12UE,Huntingdonshire District Council,05/04/2017,12/04/2017,207981,82699117,140.17,ARCHANT HERTS & CAMBS,CR415764,One Leisure St Ives,Advertising/Promoting Services,255,
http://statistics.data.gov.uk/id/local-authority/12UE,Huntingdonshire District Council,05/04/2017,12/04/2017,207981,82699117,38.72,ARCHANT HERTS & CAMBS,CR415764,One Leisure St Neots,Advertising/Promoting Services,255,
http://statistics.data.gov.uk/id/local-authority/12UE,Huntingdonshire District Council,12/04/2017,12/04/2017,207984,SIV178298,255.38,LES MILLS UK,CR025826,One Leisure St Ives,Licences,730,
http://statistics.data.gov.uk/id/local-authority/12UE,Huntingdonshire District Council,13/04/2017,20/04/2017,205611,Q030 BL,254,BRITISH TELECOMMUNICATIONS PLC,CR027071,Cctv Shared Service,Transmission Lines Rental,767,
http://statistics.data.gov.uk/id/local-authority/12UE,Huntingdonshire District Council,19/04/2017,20/04/2017,208030,I162405,253.52,OAKHAM ALES,CR422253,One Leisure St Ives,Bar Provisions,558,
http://statistics.data.gov.uk/id/local-authority/12UE,Huntingdonshire District Council,19/04/2017,20/04/2017,208002,10416627,252.78,LUCOZADE RIBENA SUNTORY LTD,CR422660,One Leisure Sawtry,Vending Materials,560,
http://statistics.data.gov.uk/id/local-authority/12UE,Huntingdonshire District Council,19/04/2017,19/04/2017,208346,593,250,B P MORSE,CR030128,Improvement Grants,Shared Service Savings,798,
http://statistics.data.gov.uk/id/local-authority/12UE,Huntingdonshire District Council,20/04/2017,20/04/2017,208350,674042,250,METRO ROD LTD,CR479927,One Leisure St Ives,Building Mtce,303,
http://statistics.data.gov.uk/id/local-authority/12UE,Huntingdonshire District Council,26/04/2017,27/04/2017,208410,695131,250,METRO ROD LTD,CR479927,One Leisure St Ives,Building Mtce,303,
http://statistics.data.gov.uk/id/local-authority/12UE,Huntingdonshire District Council,28/04/2017,28/04/2017,209043,5574,250,SYMMETRY DPM LTD,CR453960,One Leisure St Ives,Advertising/Promoting Services,255,
http://statistics.data.gov.uk/id/local-authority/12UE,Huntingdonshire District Council,12/04/2017,12/04/2017,208181,,-250,HAMPTON/CHESMETALWORK,CR453817,General Creditors,Cit Deductions,22,
http://statistics.data.gov.uk/id/local-authority/12UE,Huntingdonshire District Council,25/04/2017,27/04/2017,208845,203199,-398.92,CAMBRIDGE VENDING,CR424128,E F H And Depots,Service Charges,412,
http://statistics.data.gov.uk/id/local-authority/12UE,Huntingdonshire District Council,11/04/2017,12/04/2017,207957,1014791,"-1,082.70",STORM TECHNOLOGIES,CR480909,Imd Shared Service,Other I T Hardware,203,
http://statistics.data.gov.uk/id/local-authority/12UE,Huntingdonshire District Council,26/04/2017,26/04/2017,208783,997,-10.02,HI-SPEC FACILITIES SERVICES PLC,CR423413,One Leisure Huntingdon,Building Cleaning,440,
http://statistics.data.gov.uk/id/local-authority/12UE,Huntingdonshire District Council,26/04/2017,26/04/2017,208783,997,-250.5,HI-SPEC FACILITIES SERVICES PLC,CR423413,Pathfinder House Site,Building Cleaning,440,
http://statistics.data.gov.uk/id/local-authority/12UE,Huntingdonshire District Council,26/04/2017,26/04/2017,208783,997,-70.14,HI-SPEC FACILITIES SERVICES PLC,CR423413,One Leisure Sawtry,Building Cleaning,440,
http://statistics.data.gov.uk/id/local-authority/12UE,Huntingdonshire District Council,26/04/2017,26/04/2017,208783,997,-581.16,HI-SPEC FACILITIES SERVICES PLC,CR423413,One Leisure St Ives,Building Cleaning,440,
http://statistics.data.gov.uk/id/local-authority/12UE,Huntingdonshire District Council,26/04/2017,26/04/2017,208783,997,-405.81,HI-SPEC FACILITIES SERVICES PLC,CR423413,One Leisure St Neots,Building Cleaning,440,
